Cogmind - Beta 16 @@@ ROGUE MODE // 2026.02.10 @ 09:52:00 Player: Wulphy Result: Heading to fleet! Performance ------------- Evolutions (9) 4500 Regions Visited (23) 4600 Robots Destroyed (747) 3735 Value Destroyed (56646) 56646 Prototype IDs (373) 7460 Alien Tech Used (11) 2200 Bonus (93678) 93678 TOTAL SCORE: 172819 Bonus ------- Triggered High Security 1500 High Alert Combat Kills 33280 Follower Combat Kills 1405 Destroyed Unchained 2000 Network Hubs Disabled 200 Built Enhanced Grunts 300 Met R17 at Cetus 500 Bested VL-GR5 5000 Found Hidden Lab 3000 Used Core Reset Matrix 3000 Scanned by Researcher 500 Pursued by Intercept 2500 Destroyed MAIN.C Guards 500 Met MAIN.C 5000 Destroyed MAIN.C Shell 5000 Destroyed MAIN.C 10000 Met Architect 300 Destroyed A8 300 Destroyed A6 400 Destroyed A4 700 Destroyed A2 1000 Destroyed Architect 15000 Win 3000 Friendly Fire -707 Cogmind --------- Core Integrity 958/1600 Matter 300/300 Energy 3617/3620 System Corruption 1% Temperature Cool (3) Movement Rolling (74) Location To Fleet Rendezvous Parts ------- > --- POWER (3) -------- Quantum-ZP Reactor > --- PROPULSION (6) --- Wheeled HC-Heavy Exoskeleton > --- UTILITY (12) ----- Armored Scrap Engine Desublimator Concept Thermoelectric Network Concept Antigrav Storage Unit Concept Countertargeting System Experimental Core Analyzer Concept Core Analysis Suite Heavy Regenerative Plating Concept Energy Mantle Concept Impact Drone Bay (0/6) > --- WEAPON (5) ------- Ragnarok Missile Launcher Hvy. Laser Helical Construct/C > --- INVENTORY (25) --- Advanced Power Amplifier Experimental Coolant Injector Experimental Coolant Injector Experimental Energy Well (600) Experimental Energy Well (600) Experimental Energy Well (600) Experimental Energy Well (600) Concept Chromion Battery (800) Concept Chromion Battery (800) Concept Chromion Battery (800) Concept Chromion Battery (800) Concept NT7 Matterbank (750) Advanced Particle Charger Experimental Kinecellerator Mini Quantum Capacitor Experimental Weapon Cycler Centrium Heavy Armor Plating Advanced Focal Shield Concept Beam Splitter AEGIS Remote Shield Concept Antimissile System Concept Matter Streamer Concept Impact Drone Bay (0/6) Peak State ------------ > --- POWER ------------ Quantum-ZP Reactor > --- PROPULSION ------- Wheeled HC-Heavy Exoskeleton > --- UTILITY ---------- Armored Scrap Engine Concept Thermoelectric Network Concept Antigrav Storage Unit Concept Countertargeting System Concept Core Analysis Suite Experimental Kinecellerator Centrium Heavy Armor Plating Concept Beam Splitter Concept Energy Mantle Concept Network Penetrator > --- WEAPON ----------- Concept Rapid Grenade Launcher Hvy. Laser Helical Construct/C > --- INVENTORY -------- Advanced Coolant Injector Advanced Coolant Injector Experimental Coolant Injector Experimental Energy Well Concept Chromion Battery Concept Chromion Battery Concept Chromion Battery Concept Chromion Battery Concept NT7 Matterbank Concept Countertargeting System Experimental Core Analyzer Advanced Particle Charger Mini Quantum Capacitor Concept Phase Shift Module Concept Cloak Mesh Advanced Focal Shield Experimental EM Shield Concept Energy Mantle Concept Antimissile System Advanced Component Analysis Suite Concept Matter Streamer Concept Impact Drone Bay Concept Impact Drone Bay Transdimensional Reconstructor Long-range Proton Cannon [Rating: 282] Favorites ----------- Power Constructs Engine Improved Deuterium Engine Power Core Enhanced Nuclear Core Reactor Constructs Propulsion Constructs Treads Light Treads Wheel Constructs Hover Unit Aerolev Unit Utility Armored Scrap Engine Device Armored Scrap Engine Storage Huge Storage Unit Processor Experimental Core Analyzer Hackware Concept Network Penetrator Protection Improved Powered Armor Artifact Phase Redirector Weapon Constructs Energy Gun KN-7UR's Autopenetrator Energy Cannon Enhanced Nova Cannon Ballistic Gun Helical Railgun Ballistic Cannon Constructs Launcher Ragnarok Missile Launcher Special Weapon Remote Datajack Impact Weapon Impact Mace Slashing Weapon Segregator Build | -11 -10 -10 -9 -8 -7 -7 -7 -5 -5 -5 -5 -5 -4 -4 -4 -3 -3 -3 -2 -2 -1 -1 -1 ------- Run | Yrd Mat Min Mat Mat Fac Sto Rec Fac Ext Cet Arc Hub Fac Arm Lab Res Qua Frg Res Tes Acc Com Ac0 Slots Evolved 18 | . . . 2 2 2 . . 4 . . . . 2 . . 2 . . 2 . 2 . . Power 2 | . . . . . 1 . . . . . . . . . . 1 . . . . . . . Propulsion 3 | . . . 1 1 . . . 1 . . . . . . . . . . . . . . . Utility 10 | . . . 1 1 1 . . 1 . . . . 2 . . . . . 2 . 2 . . Weapon 3 | . . . . . . . . 2 . . . . . . . 1 . . . . . . . Parts Attached 355 | 7 10 1 15 12 12 15 11 3 15 3 1 5 11 8 6 88 27 57 11 9 5 15 8 Power 35 | 1 . . 1 . 2 2 1 . 2 . . . 2 2 1 10 3 8 . . . . . Engine 7 | 1 . . 1 . 2 1 1 . 1 . . . . . . . . . . . . . . Core 6 | . . . . . . 1 . . 1 . . . 1 . . 2 . 1 . . . . . Reactor 22 | . . . . . . . . . . . . . 1 2 1 8 3 7 . . . . . Propulsion 25 | 2 2 . 5 3 2 4 2 1 4 . . . . . . . . . . . . . . Treads 14 | 2 1 . 5 1 1 3 1 . . . . . . . . . . . . . . . . Leg . | . . . . . . . . . . . . . . . . . . . . . . . . Wheel 10 | . 1 . . 2 1 . 1 1 4 . . . . . . . . . . . . . . Hover 1 | . . . . . . 1 . . . . . . . . . . . . . . . . . Flight . | . . . . . . . . . . . . . . . . . . . . . . . . Utility 210 | 2 4 1 4 3 3 1 5 2 5 3 1 5 9 6 5 58 17 41 9 5 4 11 6 Device 132 | 1 . 1 1 1 2 1 2 2 2 2 1 2 5 4 3 39 8 26 7 5 3 8 6 Storage 15 | 1 2 . . 1 1 . 1 . . . . 2 1 . 1 3 1 1 . . . . . Processor 28 | . . . 1 . . . . . . . . . . 1 . 14 3 6 . . 1 2 . Hackware 5 | . . . . . . . . . . . . 1 1 . . . 2 . 1 . . . . Protection 29 | . 2 . 2 1 . . 2 . 3 1 . . 2 1 1 2 2 8 1 . . 1 . Artifact 1 | . . . . . . . . . . . . . . . . . 1 . . . . . . Weapon 85 | 2 4 . 5 6 5 8 3 . 4 . . . . . . 20 7 8 2 4 1 4 2 Energy Gun 27 | . . . 3 3 5 2 1 . 1 . . . . . . 6 2 3 1 . . . . Energy Cannon 18 | . . . . . . 4 2 . 1 . . . . . . 6 2 . . 2 1 . . Ballistic Gun 11 | 2 . . . 1 . . . . 1 . . . . . . 4 1 2 . . . . . Ballistic Cannon 10 | . 4 . . . . . . . . . . . . . . 2 1 . 1 . . 2 . Launcher 14 | . . . . 2 . . . . 1 . . . . . . 2 1 3 . 1 . 2 2 Special Weapon 1 | . . . . . . 1 . . . . . . . . . . . . . . . . . Impact Weapon 2 | . . . 1 . . 1 . . . . . . . . . . . . . . . . . Slashing Weapon 2 | . . . 1 . . . . . . . . . . . . . . . . 1 . . . Piercing Weapon . | . . . . . . . . . . . . . . . . . . . . . . . . Special Melee Weapon . | . . . . . . . . . . . . . . . . . . . . . . . . Unidentified Prototypes 83 | . . . 1 3 2 6 2 . . 2 . . . 1 5 16 8 29 . 2 . 5 1 Corrupted Parts 2 | . . . . . . . 1 . . . . . . . . . . 1 . . . . . System Corruption 12 | . . . . . . . 2 . . . . . . . . . . 10 . . . . . Parts Lost 35 | . . . . 1 . . 7 1 3 2 1 1 . . . 3 1 6 . 2 5 . 2 Power 5 | . . . . . . . 2 . . . . 1 . . . . . 2 . . . . . Propulsion 3 | . . . . 1 . . 1 . 1 . . . . . . . . . . . . . . Utility 16 | . . . . . . . 2 1 . 1 1 . . . . 2 . 3 . 1 4 . 1 Weapon 11 | . . . . . . . 2 . 2 1 . . . . . 1 1 1 . 1 1 . 1 Highest Loss Streak 7 | . . . . 1 . . 7 1 2 2 1 1 . . . 2 1 2 . 1 2 . 1 To Critical Strikes 3 | . . . . . . . . . 1 . . . . . . . . . . 1 . . 1 Average Backups 22 | 2 10 14 14 20 24 25 24 23 24 24 24 24 20 22 24 24 24 24 24 24 24 24 23 Power . | . . . . . . . . . . . . . . . . . . . . . . . . Propulsion 1 | . 3 6 5 5 5 3 3 1 2 1 1 . 1 1 . . . . . . . . . Utility 17 | . 1 3 2 6 9 14 14 18 19 20 21 21 16 16 17 20 20 20 21 22 22 22 22 Weapon 2 | . 5 5 6 8 9 7 6 3 2 3 2 2 2 4 4 1 1 . 1 . . . . Tool/Special . | . . . . . . . . . . . . . . . . . . . . . . . . Unused Backups 174 | . 7 1 7 . 7 5 6 10 10 6 2 3 20 18 6 13 3 25 8 3 . 3 11 Power 7 | . 1 . . . . . . 1 1 . . . 1 2 . 1 . . . . . . . Propulsion 35 | . 1 . 1 . . 4 2 4 1 1 1 . 6 3 . 4 . 2 5 . . . . Utility 74 | . 1 . . . 2 1 3 2 5 2 1 . 8 2 2 7 3 18 3 . . 3 11 Weapon 56 | . 4 1 6 . 5 . 1 2 3 3 . 3 5 10 4 1 . 5 . 3 . . . Tool/Special 2 | . . . . . . . . 1 . . . . . 1 . . . . . . . . . Average Slot Usage (%) 66 | . 100 100 99 98 95 99 78 65 72 61 55 54 54 56 56 58 60 57 55 51 55 55 54 Engine 2 | . 14 14 11 9 12 8 6 5 7 . . . . . . . . . . . . . . Reactor 4 | . . . . . . . . . 2 4 5 5 1 6 9 11 13 11 6 4 4 4 3 Treads 5 | . 23 28 22 18 15 14 10 2 2 2 . . 3 . . 1 . . 1 4 4 1 1 Wheel 4 | . 4 . 10 17 15 15 11 10 11 8 8 7 . 1 . . . . . . . . . Device 18 | . 11 14 10 9 13 15 14 17 11 12 17 15 24 25 26 17 13 20 23 17 24 24 23 Storage 5 | . 14 14 11 9 7 7 7 5 5 5 5 5 5 5 5 4 4 4 4 4 4 4 3 Processor 4 | . . . 9 9 7 7 7 5 5 3 . . . . . 7 9 5 4 4 4 7 7 Protection 3 | . 2 . 1 8 6 7 2 . 4 5 5 5 5 5 5 3 4 1 1 4 4 4 3 Energy Gun 2 | . . . 16 17 14 11 2 5 7 3 . . . . . 1 . 1 . . . . . Energy Cannon 2 | . . . . . . 2 8 5 3 1 . . 2 1 2 1 2 3 1 4 4 1 2 Ballistic Cannon 3 | . 26 28 4 . . . . . 2 3 5 4 2 3 2 4 4 2 2 . 1 2 . Peak Build Rating 282 | 7 10 11 20 28 38 48 67 88 94 103 106 104 133 159 166 189 202 238 264 264 282 273 273 Average Rating 148 | 5 9 10 17 24 34 44 55 76 85 94 101 100 113 139 162 178 192 204 253 255 270 266 270 On Entrance 116 | . 7 10 11 19 26 37 47 67 83 86 100 98 87 130 159 165 181 196 236 260 250 265 267 Avg Prop Armor Cover (%) 12 | . 11 . 18 13 12 11 15 14 9 8 7 1 . . . . . . . . . . . Naked Turns . | . . . . . . . . . . . . . . . . . . . . . . . . Heaviest Build 191 | 15 34 34 37 106 114 121 121 112 144 140 140 174 128 187 164 180 191 191 159 159 191 184 188 Greatest Support 291 | 40 40 40 40 32 28 28 28 28 75 32 70 84 113 177 174 178 178 260 230 230 230 230 291 Greatest Overweight (x) 10 | . 2 . 2 6 4 4 6 9 10 8 8 2 2 1 . 1 1 1 1 . . 1 . Average Overweight (x) . | . . . 1 2 3 3 4 3 2 4 4 1 . . . . . . . . . . . Largest Inventory Capacity 25 | 8 15 15 15 25 25 25 25 25 25 25 25 25 25 25 25 25 25 25 25 25 25 25 25 Average Capacity 23 | 7 11 15 15 24 25 25 25 25 25 25 25 25 22 23 25 25 25 25 25 25 25 25 25 Most Carried 25 | 4 15 15 15 23 25 25 25 25 25 25 25 25 25 25 25 25 25 25 25 25 25 25 25 Average Carried 23 | 2 10 14 14 20 24 24 24 24 24 24 24 24 21 23 24 24 24 24 24 24 24 24 24 Final Capacity 25 | 8 15 15 15 25 25 25 25 25 25 25 25 25 20 25 25 25 25 25 25 25 25 25 25 Final Carried 25 | 4 15 15 15 23 25 25 24 25 25 25 25 23 20 25 25 24 25 24 25 25 23 25 24 Scrap Engine Consumption 372 | . . . . . . . 18 17 42 17 9 14 39 42 5 33 7 49 8 12 11 34 15 Constructs Created 9 | . . . . . . . 2 . 2 . . . . . . 1 1 1 . 1 . . 1 Constructs Modified 154 | . . . . . . . 5 5 18 6 8 4 18 18 3 12 2 21 4 2 5 16 7 Class Distribution -------------------- 27% | Construct 20% | Mutant 20% | Alien-Construct 14% | Scavenger-Construct 6% | Hacker-Construct 6% | Scavenger-Gunner Dominant Class ---------------- Mutant | -10/Materials Mutant | -10/Mines Mutant | -9/Materials Mutant | -8/Materials Mutant | -7/Factory Mutant | -7/Storage Mutant | -7/Recycling Scavenger-Gunner | -5/Factory Scavenger-Gunner | -5/Extension Construct | -5/Cetus Construct | -5/Archives Construct | -5/Hub_04(d) Construct | -4/Factory Construct | -4/Armory Construct | -4/Lab Construct | -3/Research Alien-Construct | -3/Quarantine Scavenger-Construct | -3/Protoforge Hacker-Construct | -2/Research Hacker-Construct | -2/Testing Hacker-Construct | -1/Access Alien-Construct | -1/Command Alien-Construct | -1/Access_0 Resources | -11 -10 -10 -9 -8 -7 -7 -7 -5 -5 -5 -5 -5 -4 -4 -4 -3 -3 -3 -2 -2 -1 -1 -1 ----------- Run | Yrd Mat Min Mat Mat Fac Sto Rec Fac Ext Cet Arc Hub Fac Arm Lab Res Qua Frg Res Tes Acc Com Ac0 Matter Collected 15850 | 223 376 165 232 354 50 483 168 402 271 90 80 170 370 1656 325 2788 775 3674 835 677 594 414 678 Remotely 1181 | . . 129 . . . . . . . . . . . . . . 131 627 . . . . 294 Salvage Created 51270 | 26 346 33 651 964 50 246 1020 713 780 422 604 732 1860 2402 75 4525 2254 14216 2747 4926 6650 3263 1765 Parts 1997 | 4 24 3 41 45 7 12 37 20 24 13 25 40 83 85 8 162 100 579 118 161 239 100 67 Haulers Intercepted 15 | . 2 . 4 2 . . . 2 . . . . . . . 3 . . 2 . . . . Recyclers Shooed 11 | . 1 . . . . . 2 2 4 . . . . . . 1 . . 1 . . . . Parts Field Recycled 5 | . . . . . . . . . . . . . . . . 5 . . . . . . . Retrieved Matter 350 | . . . . . . . . . . . . . . . . 350 . . . . . . . Parts Self-Destructed . | . . . . . . . . . . . . . . . . . . . . . . . . Prevented . | . . . . . . . . . . . . . . . . . . . . . . . . Parts Restored 5 | . . . . . . . . . . . . . . . . . . 5 . . . . . Faulty 5 | . . . . . . . . . . . . . . . . . . 5 . . . . . Kills | -11 -10 -10 -9 -8 -7 -7 -7 -5 -5 -5 -5 -5 -4 -4 -4 -3 -3 -3 -2 -2 -1 -1 -1 ------- Run | Yrd Mat Min Mat Mat Fac Sto Rec Fac Ext Cet Arc Hub Fac Arm Lab Res Qua Frg Res Tes Acc Com Ac0 Combat Hostiles Destroyed 624 | . 7 4 9 16 1 4 7 8 6 7 4 10 22 36 1 55 25 179 23 62 90 13 35 Guns 31 | . . . 9 12 1 3 . 1 4 1 . . . . . . . . . . . . . Cannons 517 | . 7 4 . . . . 6 5 . 2 4 10 21 30 1 51 25 161 23 50 73 12 32 AOE 45 | . . . . 4 . . . . . . . . . 1 . 4 . 9 . 10 15 . 2 Classes Destroyed 33 | 1 5 1 3 1 1 . 2 1 1 . . . 1 4 . 3 2 7 . . . . . Worker 16 | . 1 . . . . . . 3 1 . . 1 2 . . 1 . 2 . 1 4 . . Builder 21 | . . . . 1 . . 2 1 1 . . 2 1 . . . 3 7 1 . 2 . . Tunneler 4 | 1 . . 1 1 1 . . . . . . . . . . . . . . . . . . Hauler 15 | . 2 . 4 2 . . . 2 . . . . . . . 3 . . 2 . . . . Recycler 21 | . 3 . . 1 . . 5 . 2 . . . 2 . . 4 1 . 3 . . . . Carrier 8 | . . . . . . . . . . . . . . . . . . 4 . . 4 . . Mechanic 8 | . . . . . . . . . . . . . . . . . 2 3 . 1 2 . . Operator 9 | . . . 1 . . . . 1 . . 3 . . . . . 1 1 1 1 . . . Drone 4 | . . . . . . . . . . . . . . . . . . 4 . . . . . Watcher 14 | . . . . . . . . . . . . . 1 1 . . . . 5 2 4 1 . Swarmer 32 | . 3 2 3 3 . . . . . . . . . 1 . 6 3 3 . . 8 . . Cutter 3 | . . . . . . . . . . . . . . 3 . . . . . . . . . Saboteur 11 | . . . . . . . . . . . . . . . . . . 6 1 2 2 . . Grunt 164 | . 4 . 1 11 . 1 . 2 . . . 2 9 6 . 5 8 45 7 29 34 . . Brawler 19 | . . . . . . . . . . . . . . 1 . . . 9 1 5 3 . . Duelist 21 | . . . 1 . . . . . . . . . . 4 . . 1 10 1 1 3 . . Protector 9 | . . . . . . . . . . . . . . 2 . . . 3 . 1 3 . . Researcher 9 | . . . . . . . . . . . . . . . . . . 4 . 5 . . . Sentry 61 | . . . 4 2 . 2 3 1 3 . 4 5 3 2 . 1 . 13 1 4 12 1 . Demolisher 3 | . . . . . . . . . . . . . . . . 2 . . . 1 . . . Hunter 38 | . . . . . . . . 1 . . . 1 2 5 . 8 2 . 2 7 7 3 . Programmer 71 | . . . . . 1 1 . 4 2 . . 2 8 10 . 3 5 14 8 5 5 3 . Heavy 3 | . . . . . . . . . . . . . . 1 . . . . 1 . 1 . . Behemoth 3 | . . . . . . . . . 1 . . . . 1 . . . . . . 1 . . Cetus Guard 7 | . . . . . . . . . . 7 . . . . . . . . . . . . . M Guard 2 | . . . . . . . . . . . . . . . . . . . . . . 2 . Enhanced Grunt 22 | . . . . . . . . . . . 1 . . . . . . . . . . . 21 Enhanced Sentry 4 | . . . . . . . . . . . . . . . . . . . . . . . 4 Enhanced Hunter 5 | . . . . . . . . . . . . . . . . . . . . . . . 5 Hotshot 19 | . . . . . . . . . . . . . . . . . . 19 . . . . . Decapitator 13 | . . . . . . . . . . . . . . . . . . 13 . . . . . Immortal 10 | . . . . . . . . . . . . . . . . . . 10 . . . . . Tracker 28 | . . . . . . . . . . . . . . . . 9 2 10 . 2 5 . . Combat Programmer 27 | . . . . . . . . . . . . . . . . 7 2 9 . 2 5 2 . Investigator 1 | . . . . . . . . . . . . . . . . . . . . 1 . . . Striker 12 | . . . . . . . . . . . . . . . . 10 . . . 1 1 . . Executioner 5 | . . . . . . . . . . . . . . . . 4 . . . 1 . . . Alpha 7 3 | . . . . . . . . . . . . . . . . . . 2 . 1 . . . Fortress 1 | . . . . . . . . . . . . . . . . . 1 . . . . . . V-Series 9 | . . . . . . . . . . . . . . . . . . 9 . . . . . Scientist 2 | . . . . . . . 2 . . . . . . . . . . . . . . . . Scrapper 3 | . . . . . . . 3 . . . . . . . . . . . . . . . . Tinkerer 1 | . . . . . . . . . . . . . . . . . . 1 . . . . . Assembled 2 | . . 2 . . . . . . . . . . . . . . . . . . . . . Butcher 1 | . . . . . . . . . . . 1 . . . . . . . . . . . . Guerrilla 1 | . . . . . . . . . 1 . . . . . . . . . . . . . . Best Kill Streak 44 | 1 4 2 4 5 1 1 3 7 3 4 2 3 6 7 1 8 7 17 11 42 44 4 5 Combat Bots Only 40 | . 3 2 3 3 1 1 3 4 2 4 1 3 5 7 1 8 4 15 10 40 23 4 5 Max Kills in Single Turn 4 | 1 2 1 2 3 1 1 1 3 2 1 1 1 1 1 1 3 2 4 1 4 4 2 2 Gunslinging . | . . . . . . . . . . . . . . . . . . . . . . . . Exploded 4 | . . . . 1 . . . . . . . . . 1 . 3 . 4 . 4 3 . 2 Melee . | . . . . . . . . . . . . . . . . . . . . . . . . Uniques/NPCs Destroyed 11 | . . . . . . . 1 . . . . . . . 1 . 1 . 1 . . 2 5 KN-7UR (-7/Recycling) A5 (-4/Lab) 6S-H0T (-3/Quarantine) DW-4LL (-2/Research) MAIN.C Shell (-1/Command) MAIN.C (-1/Command) A8 (-1/Access_0) A2 (-1/Access_0) A6 (-1/Access_0) Architect (-1/Access_0) A4 (-1/Access_0) Combat | -11 -10 -10 -9 -8 -7 -7 -7 -5 -5 -5 -5 -5 -4 -4 -4 -3 -3 -3 -2 -2 -1 -1 -1 -------- Run | Yrd Mat Min Mat Mat Fac Sto Rec Fac Ext Cet Arc Hub Fac Arm Lab Res Qua Frg Res Tes Acc Com Ac0 Hostile Shots Fired 2614 | . 17 4 34 40 2 53 186 29 32 17 34 31 77 172 24 244 109 429 148 221 311 42 358 Missed 768 | . 7 2 11 15 1 15 34 3 19 9 6 10 21 39 4 52 26 145 50 64 94 8 133 Intercepted 5 | . . . . . . . . . . . . . . . . . . . . 1 . 4 . Deflected 1 | . . . . . . . . . . . . . . . 1 . . . . . . . . Hits 1846 | . 10 2 23 25 1 38 152 26 13 8 28 21 56 133 20 192 83 284 98 157 217 34 225 Melee 50 | . . . . . . . . . . . . . 2 7 . 1 . 32 3 2 . . 3 Projectile 1796 | . 10 2 23 25 1 38 152 26 13 8 28 21 54 126 20 191 83 252 95 155 217 34 222 AOE 19 | . . . . . . . . . . . . . . 3 . 5 . 8 . 1 . 2 . Critical Strikes 123 | . . . . . . . 1 . 2 1 . 1 2 10 1 9 10 40 1 10 9 2 24 Actively Blocked 7 | . . . . . . . . . . . . . . . . . . 5 . . . 2 . Part Disruptions 1 | . . . . . . . . . . . . . . . . . . . . . . . 1 Damage Taken 27406 | . 221 19 312 323 46 362 1772 484 677 243 746 595 1280 1740 339 3725 1011 5018 654 1968 1892 604 3375 Core 2334 | . 15 . 34 28 . 67 296 . 104 . 25 99 47 60 12 294 30 733 23 36 68 17 346 Absorbed by Shields 12895 | . . . . . 17 149 174 . 72 13 . . 165 1191 163 1045 842 2036 624 759 1802 585 3258 Reduced by Siege Mode 150 | . . . . . . . . . . . . . 14 . . 111 . 14 . 11 . . . Redirected to Core 166 | . . . . . . . . . . . . . . . . . 6 160 . . . . . Redirected to Shielding 362 | . 13 . 1 . . . . . . . . . . . . . . 348 . . . . . Ignored by Resistances 5179 | . . . . . . . . . . . . . 39 . . . 26 1903 320 944 1691 213 43 Regen/Repaired (Parts) 13007 | . . . . . 106 . 20 122 280 82 353 115 528 718 102 2121 679 2476 287 426 1885 806 1901 Core Remaining (%) 78 | 100 . 94 91 94 . . 48 . . . . 77 . . 89 . . 40 . 95 . . 59 Volleys Fired 1651 | 1 29 6 31 36 2 24 42 16 34 19 32 37 62 105 17 124 55 394 77 130 120 41 217 Largest 4 | 2 2 2 2 2 2 2 2 2 4 2 1 1 1 1 1 2 2 2 1 1 1 1 2 Hottest 630 | 40 66 66 90 90 141 160 124 212 311 243 160 160 122 122 122 178 135 126 126 378 630 210 280 Shots Fired 1830 | 2 55 12 60 65 4 41 81 30 52 22 32 37 62 101 17 124 58 389 77 130 120 41 218 Gun 220 | 2 . . 52 59 4 33 14 16 31 5 . . . . . 1 2 1 . . . . . Cannon 1552 | . 55 12 8 . . 6 67 14 21 17 32 37 62 101 17 122 56 371 72 125 108 40 209 Launcher 56 | . . . . 6 . . . . . . . . . . . 1 . 17 5 5 12 1 9 Special 2 | . . . . . . 2 . . . . . . . . . . . . . . . . . Kinetic 1096 | 2 55 12 8 . . . . . . 7 32 6 35 63 17 109 51 281 46 98 43 30 201 Thermal 446 | . . . . . 4 13 55 30 47 5 . 31 22 . . 12 6 91 26 27 65 4 8 Explosive 33 | . . . . 2 . . . . . . . . . . . 1 . 3 . 5 12 1 9 Electromagnetic 253 | . . . 52 63 . 26 26 . 5 10 . . 5 38 . 2 1 14 5 . . 6 . Robot Hit Streak 70 | 1 12 3 16 16 9 6 29 20 30 17 7 7 10 7 5 14 21 45 31 24 30 70 11 Robot Miss Streak 5 | . 2 3 4 3 . 2 2 3 3 2 3 4 4 5 2 4 3 3 2 1 2 2 4 Penetration Max 2 | . . . . . . . . 1 2 1 1 . 1 1 . 1 1 2 . . 2 1 . Secondary Targets 1 | . . . 1 . . . . . . . . . . . . . . . . . . . . Max Gunslinging Chain 1 | . . . 1 . . . . . . . . . . . . . . . . . . . . Capacitor 395 | . . . . . . . . . . . . . . . . . . 168 11 . 10 8 198 Shots Hit Robots 1306 | 1 33 5 47 55 4 20 68 29 41 18 22 19 39 57 9 98 45 293 54 96 98 28 127 Core Hits 897 | 1 15 4 30 46 3 8 42 41 50 11 8 11 18 28 3 62 24 174 25 85 116 26 66 Critical Kills 17 | . . . . . . . . . 1 1 1 2 . 2 . . . 7 1 . 2 . . Critical Parts Destroyed 16 | . . . . . . . . 1 . . 1 4 . 1 . 2 1 5 . 1 . . . Critical Strikes 55 | . 1 . . . . . 2 1 1 1 4 6 . 4 . 2 1 15 1 1 2 1 12 Meltdown 4 | . . . . . . . . . 1 . . . . . . . . 1 . . 2 . . Destroy 34 | . . . . . . . . . . 1 4 6 . 4 . 2 1 14 1 1 . . . Blast 13 | . 1 . . . . . . . . . . . . . . . . . . . . . 12 Corrupt 3 | . . . . . . . 2 . . . . . . . . . . . . . . 1 . Smash 1 | . . . . . . . . 1 . . . . . . . . . . . . . . . Melee Attacks 11 | . . . 4 . . . . 7 . . . . . . . . . . . . . . . Impact 8 | . . . 1 . . . . 7 . . . . . . . . . . . . . . . Slashing 3 | . . . 3 . . . . . . . . . . . . . . . . . . . . Piercing . | . . . . . . . . . . . . . . . . . . . . . . . . Sneak Attacks 1 | . . . . . . . . 1 . . . . . . . . . . . . . . . Combat Hostiles . | . . . . . . . . . . . . . . . . . . . . . . . . Follow-up Attacks . | . . . . . . . . . . . . . . . . . . . . . . . . Damage Inflicted 264871 | 12 855 114 948 1713 93 445 1498 1804 2165 1089 2970 2453 4895 8786 1404 14572 10730 85782 12604 23538 38466 10774 37161 Guns 5401 | 12 . . 737 971 93 349 211 873 1838 260 . . . . . . 57 . . . . . . Cannons 244509 | . 742 114 82 . . 96 1235 416 327 829 2970 2435 4895 8618 1404 14018 10673 83925 12471 20237 32612 10774 35636 Explosions 14751 | . 113 . 129 742 . . . 421 . . . 18 . 168 . 554 . 1857 133 3237 5854 . 1525 Melee 94 | . . . . . . . . 94 . . . . . . . . . . . . . . . Ramming 116 | . . . . . . . 52 . . . . . . . . . . . . 64 . . . Kinetic 189148 | 12 742 114 82 . . . . . . 490 2970 237 2522 6249 1404 12406 10730 70344 7143 15128 14436 10148 33991 Thermal 56356 | . . . 129 483 93 190 1040 1289 2092 260 . 2198 2150 168 . 1850 . 13581 5328 5109 18176 306 1914 Explosive 12613 | . 113 . . 163 . . . 421 . . . . . . . 316 . 1253 . 3237 5854 . 1256 Electromagnetic 6544 | . . . 737 1067 . 255 406 . 73 339 . 18 223 2369 . . . 604 133 . . 320 . Impact 94 | . . . . . . . . 94 . . . . . . . . . . . . . . . Slashing . | . . . . . . . . . . . . . . . . . . . . . . . . Piercing . | . . . . . . . . . . . . . . . . . . . . . . . . Highest Corruption 28 | . . . . 3 . 2 5 3 6 . . . 3 22 22 14 14 28 . 4 5 9 1 Average Corruption 6 | . . . . 3 . 1 2 2 5 . . . 2 12 9 8 14 10 . 1 2 8 1 Corruption Purged 19 | . . . . . . . 2 . 6 . . . . . . 2 . . . . . 9 . Corruption Blocked . | . . . . . . . . . . . . . . . . . . . . . . . . Effects 425 | . . . . 10 . 6 21 6 34 . . . 17 71 16 65 7 117 . . 7 40 8 Message Errors 108 | . . . . 1 . 1 6 1 12 . . . 5 14 8 15 . 32 . . 2 11 . Matter Fused 95 | . . . . 1 . 2 4 . 5 . . . 5 13 6 18 4 24 . . 3 7 3 Heat Flow Errors 43 | . . . . 3 . 1 4 1 1 . . . 1 7 1 4 2 13 . . . 3 2 Energy Discharges 57 | . . . . 2 . 1 3 2 5 . . . 1 17 1 9 . 13 . . . 2 1 Parts Rejected 6 | . . . . . . . . . 1 . . . . . . 1 . 3 . . . 1 . Parts Fused 4 | . . . . . . . . . 1 . . . . 1 . 1 . 1 . . . . . Data Loss (minor) 54 | . . . . 2 . . 3 2 4 . . . 1 10 . 10 . 10 . . 1 11 . Data Loss (major) 20 | . . . . . . 1 . . 2 . . . 4 4 . 2 . 3 . . 1 2 1 Misfires 8 | . . . . . . . . . 2 . . . . . . 2 1 2 . . . 1 . Alerts 10 | . . . . . . . 1 . 1 . . . . . . . . 6 . . . 1 1 Misdirections 2 | . . . . . . . . . . . . . . 1 . . . 1 . . . . . Weapon Failures 18 | . . . . 1 . . . . . . . . . 4 . 3 . 9 . . . 1 . Overload Shots 7 | . . . . . . . . . 4 . . . . . . . . . . 2 1 . . Overflow Damage 45091 | . 3 . . 6 . . 38 64 . 39 247 429 1302 2115 142 1880 2461 16024 3601 4447 7095 704 4494 Projectiles 44429 | . 3 . . . . . 38 . . 39 247 429 1302 2108 142 1877 2461 15927 3601 4418 6700 704 4433 Explosions 611 | . . . . 6 . . . 27 . . . . . 7 . 3 . 97 . 15 395 . 61 Melee 51 | . . . . . . . . 37 . . . . . . . . . . . 14 . . . Knockbacks 339 | . 13 . . . . . 1 . . . 1 . 11 10 6 55 19 104 9 21 8 7 74 Impact 2 | . . . . . . . 1 . . . . . . . . . . . . 1 . . . Kinetic 311 | . 10 . . . . . . . . . 1 . 10 10 6 51 14 96 8 18 8 7 72 Secondary 26 | . 3 . . . . . . . . . . . 1 . . 4 5 8 1 2 . . 2 Self-Inflicted Damage 1072 | . 99 . 37 . . . 25 . . . . 166 . 38 . 129 . 275 25 . 135 90 53 Shots 15 | . 1 . 1 . . . . . . . . 2 . 1 . 2 . 4 1 . 1 1 1 Rammed 5 | . . . . . . . 4 . . . . . . . . . . . . 1 . . . Targets Rammed 5 | . . . . . . . 4 . . . . . . . . . . . . 1 . . . Kicked . | . . . . . . . . . . . . . . . . . . . . . . . . Crushed . | . . . . . . . . . . . . . . . . . . . . . . . . Highest Temperature 470 | . 67 18 132 167 84 246 281 225 306 334 333 315 280 362 206 296 200 413 329 335 470 203 183 Average Temperature 91 | . 17 7 38 52 35 88 73 55 81 109 142 117 66 92 80 65 31 54 119 107 117 117 131 Received Heat Transfer 3682 | . 54 . 54 126 . 52 946 9 68 18 162 72 122 61 . 21 282 1229 49 102 129 8 118 Thermoelectric Energy+ 11305 | . . . . . . . . . . . . . . . . . . . . . 943 1126 9236 Effects 16 | . . . . . . . . . 1 1 1 . . 2 . . . . 1 5 5 . . Shutdowns 3 | . . . . . . . . . . 1 . . . 1 . . . . . . 1 . . Energy Bleed 3 | . . . . . . . . . 1 . . . . 1 . . . . . . 1 . . Interference 8 | . . . . . . . . . . . 1 . . . . . . . 1 3 3 . . Matter Decay 2 | . . . . . . . . . . . . . . . . . . . . 2 . . . Siege Activations 10 | . . . . . . . . . . . . . 2 2 . 3 . 2 . 1 . . . Total Turns 117 | . . . . . . . . . . . . . 16 17 . 36 . 13 . 35 . . . Longest Duration 35 | . . . . . . . . . . . . . 9 9 . 24 . 11 . 35 . . . Martial Activations . | . . . . . . . . . . . . . . . . . . . . . . . . Shielding Activations 2 | . . . . . . . . . . . . . . . 1 1 . . . . . . . Total Turns 40 | . . . . . . . . . . . . . . . 28 12 . . . . . . . Longest Duration 28 | . . . . . . . . . . . . . . . 28 12 . . . . . . . Robots Disrupted 1 | . . . . 1 . . . . . . . . . . . . . . . . . . . Combat Hostiles 1 | . . . . 1 . . . . . . . . . . . . . . . . . . . Robots Corrupted 26 | . . . . . . 1 1 1 . 4 . . 1 5 . . 1 8 . 2 . 1 1 Combat Hostiles 24 | . . . . . . 1 1 . . 4 . . 1 5 . . . 8 . 2 . 1 1 Parts Fried 93 | . . . 3 6 . 2 7 1 1 1 . . 4 39 . 1 2 14 . 5 . 5 2 Impact Corruptions 20 | . . . . . . . . 1 . . . . . . . 3 4 6 1 4 . . 1 Robots Melted 7 | . . . . . . . . 2 2 . . . . . . . . 1 . . 2 . . Combat Hostiles 7 | . . . . . . . . 2 2 . . . . . . . . 1 . . 2 . . Parts Melted 40 | . . . . 1 . 1 7 16 6 . . . 1 1 . . . 2 1 1 3 . . Heat Transferred 20812 | . . . 200 600 174 325 2285 3193 4176 600 . 703 555 50 . 224 . 3051 693 953 2730 . 300 Parts Sabotaged . | . . . . . . . . . . . . . . . . . . . . . . . . Parts Stolen . | . . . . . . . . . . . . . . . . . . . . . . . . Parts Stripped . | . . . . . . . . . . . . . . . . . . . . . . . . Power Chain Reactions 16 | . . . 4 5 . . . . . . . 1 . 1 . 2 . . . . . . 3 Alert | -11 -10 -10 -9 -8 -7 -7 -7 -5 -5 -5 -5 -5 -4 -4 -4 -3 -3 -3 -2 -2 -1 -1 -1 ------- Run | Yrd Mat Min Mat Mat Fac Sto Rec Fac Ext Cet Arc Hub Fac Arm Lab Res Qua Frg Res Tes Acc Com Ac0 Maximum Alert Level 5 | . . . . 1 . . . 2 2 1 . 2 1 2 . 4 4 5 5 5 5 5 . Low Security (%) 40 | 100 100 100 100 55 100 100 100 27 75 41 100 98 21 39 . 17 . . . . . . . Level 1 17 | . . . . 44 . . . 65 8 58 . . 78 35 . 42 . 3 . . . . . Level 2 5 | . . . . . . . . 6 15 . . 1 . 24 . 10 . 12 . . . . . Level 3 5 | . . . . . . . . . . . . . . . . 6 71 13 . . . . . Level 4 4 | . . . . . . . . . . . . . . . . 22 28 6 . . . . . Level 5 22 | . . . . . . . . . . . . . . . . . . 64 96 67 14 100 . High Security 3 | . . . . . . . . . . . . . . . . . . . 3 32 85 . . Max Security . | . . . . . . . . . . . . . . . . . . . . . . . . Peak Influence 6160 | 5 186 88 194 254 94 31 50 437 620 380 56 403 349 591 . 1384 1142 6160 3997 3721 5320 3531 . Initial 3462 | . . 5 31 60 94 . . 302 182 334 35 . 197 102 . . 776 573 3462 2247 2232 3404 . Average 922 | . 69 5 112 145 16 4 8 273 164 231 20 90 232 294 . 532 999 2884 3540 2592 3469 3465 . Influence Increases 24752 | 5 355 119 631 506 77 168 314 875 1294 284 172 735 849 1270 . 1976 902 6531 853 2120 3208 446 1062 Destroy 0b10 Robot/C 12580 | . 140 60 340 320 20 80 60 160 600 160 80 200 440 680 . 1100 480 3680 440 1460 1820 260 . Destroy 0b10 Robot/NC 690 | 5 30 . 30 25 5 . 35 35 50 10 15 15 30 15 . 40 35 100 60 35 75 45 . Destroy Leader 2370 | . 34 10 98 74 10 30 . 54 76 . . 70 92 156 . 326 110 540 104 166 388 32 . Allied During Kill 710 | . . 16 23 . . . . . 373 94 . . . . . . . . . 204 . . . Successful Hack 555 | . 38 . 27 . 42 12 31 28 36 . . 58 26 52 . . 40 59 33 69 . 4 . Select Force Hacks 180 | . . . . . . . 180 . . . . . . . . . . . . . . . . Disable Machine 1860 | . 15 . 45 15 . 45 . 225 60 . 45 105 75 180 . 105 120 450 15 45 120 45 150 Anti-Garrison Action 450 | . . . . . . . . . . . . . . . . . . 150 . . 300 . . Destroy Structure 4127 | . 38 3 23 27 . 1 8 58 54 20 32 212 126 142 . 390 72 1402 51 126 370 60 912 Advance Influence 300 | . . . . . . . . 300 . . . . . . . . . . . . . . . Partial Spotted 120 | . 15 . . . . . . . . . . 15 15 30 . . 15 15 15 . . . . Lose Combat Pursuer 810 | . 45 30 45 45 . . . 15 45 . . 60 45 15 . 15 30 135 135 15 135 . . Influence Decreases 23870 | 5 340 54 567 441 286 168 309 507 1069 794 260 332 1041 893 588 595 1263 1395 3012 2396 1609 2066 3880 Entered New Map 14273 | . . 10 49 84 115 . . 3 191 264 53 . 206 109 588 . 605 447 2694 1750 1489 1916 3700 Time Decay 7508 | 5 340 24 478 347 171 168 307 494 608 310 197 322 528 624 . 565 498 738 318 246 70 150 . Lost Part 282 | . . . . 10 . . 2 10 30 20 10 10 . . . 30 10 60 . 20 50 . 20 Lost Ally 760 | . . 20 40 . . . . . 240 200 . . 10 10 . . . . . 80 . . 160 Purge Threat 1047 | . . . . . . . . . . . . . 297 150 . . 150 150 . 300 . . . Squads Dispatched 149 | . . . 1 3 1 2 . 4 1 . . 2 4 12 . 9 5 34 13 15 41 2 . Investigation 6 | . . . . . . . . . . . . . . 1 . 3 . 1 . 1 . . . Extermination 27 | . . . . . 1 2 . 2 . . . 1 3 6 . . 2 5 3 1 . 1 . Reinforcement 24 | . . . 1 3 . . . 2 1 . . 1 1 5 . 2 1 . 4 3 . . . Assault 79 | . . . . . . . . . . . . . . . . . 1 24 6 9 38 1 . Garrison 1 | . . . . . . . . . . . . . . . . . . . . . 1 . . Intercept 12 | . . . . . . . . . . . . . . . . 4 1 4 . 1 2 . . Searches Triggered . | . . . . . . . . . . . . . . . . . . . . . . . . Unchained Authorized 3 | . . . . . . . . . . . . . . . . . 1 . 2 . . . . Construction Impeded 1 | . . . . 1 . . . . . . . . . . . . . . . . . . . Haulers Reinforced 2 | . . . . . . . . . . . . . . . . 1 . . 1 . . . . Active Scanning Responses . | . . . . . . . . . . . . . . . . . . . . . . . . Cargo Convoy Interrupts . | . . . . . . . . . . . . . . . . . . . . . . . . Stealth | -11 -10 -10 -9 -8 -7 -7 -7 -5 -5 -5 -5 -5 -4 -4 -4 -3 -3 -3 -2 -2 -1 -1 -1 --------- Run | Yrd Mat Min Mat Mat Fac Sto Rec Fac Ext Cet Arc Hub Fac Arm Lab Res Qua Frg Res Tes Acc Com Ac0 Distress Signals 58 | . 4 2 1 4 1 1 . 2 2 2 . 2 3 3 . 4 2 2 1 1 3 18 . Communications Jammed 51 | . . . . . . . . . . . . . 19 3 . . . 29 . . . . . Distress Signals 51 | . . . . . . . . . . . . . 19 3 . . . 29 . . . . . Times Spotted 938 | . 17 11 28 26 7 14 32 15 37 10 4 21 40 50 1 56 35 204 40 103 103 13 71 Peak Tracking Total 19 | . 5 16 4 4 4 4 5 3 6 5 1 4 6 7 1 6 6 16 10 19 11 5 5 Tactical Retreats 51 | . 3 2 3 2 . . 5 1 2 . . 4 4 1 . 1 2 5 4 1 6 . 5 ECM-based Alert Blocks 6 | . . . . . . . . . . . . . 6 . . . . . . . . . . Traps | -11 -10 -10 -9 -8 -7 -7 -7 -5 -5 -5 -5 -5 -4 -4 -4 -3 -3 -3 -2 -2 -1 -1 -1 ------- Run | Yrd Mat Min Mat Mat Fac Sto Rec Fac Ext Cet Arc Hub Fac Arm Lab Res Qua Frg Res Tes Acc Com Ac0 Traps Triggered 38 | . . . . . 1 2 . . 1 . . . 1 4 . 1 3 15 1 2 4 3 . Indirectly 7 | . . . . . . . . . . . . . . . . . . 7 . . . . . Trap Hack Attempts . | . . . . . . . . . . . . . . . . . . . . . . . . Triggered . | . . . . . . . . . . . . . . . . . . . . . . . . Disarmed 6 | . . . . . . . . . . . . . . . . . . . 6 . . . . Reprogrammed 6 | . . . . . . . . . . . . 6 . . . . . . . . . . . Reused . | . . . . . . . . . . . . . . . . . . . . . . . . Traps Extracted . | . . . . . . . . . . . . . . . . . . . . . . . . Installed . | . . . . . . . . . . . . . . . . . . . . . . . . Triggered . | . . . . . . . . . . . . . . . . . . . . . . . . Machines | -11 -10 -10 -9 -8 -7 -7 -7 -5 -5 -5 -5 -5 -4 -4 -4 -3 -3 -3 -2 -2 -1 -1 -1 ---------- Run | Yrd Mat Min Mat Mat Fac Sto Rec Fac Ext Cet Arc Hub Fac Arm Lab Res Qua Frg Res Tes Acc Com Ac0 Machines Disabled 151 | . 1 . 3 1 . 3 . 15 4 . 3 7 8 12 1 7 9 50 1 3 10 3 10 Max in Single Turn 6 | . 1 . 1 1 . 1 . 6 1 . 1 5 6 1 1 1 2 3 1 1 1 1 1 Garrison Access 5 | . . . . . . . . 1 . . . . . . . . . 1 . . 3 . . Network Hub 1 | . . . . . . . . . . . . 1 . . . . . . . . . . . Machines Repaired . | . . . . . . . . . . . . . . . . . . . . . . . . Machines Dismantled . | . . . . . . . . . . . . . . . . . . . . . . . . Machines Sabotaged . | . . . . . . . . . . . . . . . . . . . . . . . . Overloaded Fab Kills . | . . . . . . . . . . . . . . . . . . . . . . . . Hacking | -11 -10 -10 -9 -8 -7 -7 -7 -5 -5 -5 -5 -5 -4 -4 -4 -3 -3 -3 -2 -2 -1 -1 -1 --------- Run | Yrd Mat Min Mat Mat Fac Sto Rec Fac Ext Cet Arc Hub Fac Arm Lab Res Qua Frg Res Tes Acc Com Ac0 Machines Accessed 117 | . 6 . 8 . 5 4 13 4 16 . . 6 8 8 2 7 5 8 6 6 2 1 2 Terminals 84 | . 6 . 6 . 2 4 6 3 15 . . 6 7 6 . . 4 8 5 5 . 1 . Fabricators 6 | . . . . . . . . . . . . . . 2 . 2 . . . 1 1 . . Repair Stations 2 | . . . . . 1 . . . 1 . . . . . . . . . . . . . . Recycling Units 6 | . . . . . . . 6 . . . . . . . . . . . . . . . . Scanalyzers 9 | . . . 2 . 1 . . . . . . . 1 . . 3 1 . 1 . . . . Garrison Access 5 | . . . . . 1 . . 1 . . . . . . . 2 . . . . 1 . . Total Hacks 370 | . 23 . 22 . 11 12 31 8 25 . . 17 38 46 4 13 11 25 29 27 5 2 21 Successful 204 | . 17 . 12 . 5 3 21 3 9 . . 10 20 18 4 . 6 13 21 17 3 1 21 Failed 164 | . 6 . 9 . 5 9 10 5 16 . . 7 18 28 . 13 5 12 8 10 2 1 . Catastrophic 27 | . . . 1 . . . 1 4 5 . . 2 2 7 . 2 2 1 . . . . . Database Lockouts 2 | . . . 1 . 1 . . . . . . . . . . . . . . . . . . Manual 153 | . 17 . 9 . 3 5 18 3 4 1 . 6 20 34 . . 5 10 14 4 . . . Terminals 290 | . 23 . 17 . 5 12 22 6 23 . . 17 34 43 . . 10 25 26 25 . 2 . Fabricators 10 | . . . . . . . . . . . . . . 3 . 3 . . . 2 2 . . Repair Stations 4 | . . . . . 2 . . . 2 . . . . . . . . . . . . . . Recycling Units 7 | . . . . . . . 7 . . . . . . . . . . . . . . . . Scanalyzers 24 | . . . 5 . 3 . . . . . . . 4 . . 8 1 . 3 . . . . Garrison Access 8 | . . . . . 1 . . 2 . . . . . . . 2 . . . . 3 . . Terminal Hacks 124 | . 5 . 5 . 2 3 8 . 6 . . 7 12 11 4 . 4 10 11 14 . 1 21 Record 22 | . . . . . . . . . . . . . . . 4 . . 1 . . . . 17 Part Schematic 2 | . . . . . . . . . . . . . . . . . . . . 2 . . . Robot Analysis 2 | . . . . . . . . . 1 . . . . . . . . . . 1 . . . Prototype ID Bank 10 | . 1 . 1 . . 1 . . . . . 1 . . . . 1 1 2 2 . . . Open Door 7 | . . . . . . . . . 5 . . . . 1 . . . . . . . 1 . Level Access Points 1 | . . . . . . . . . . . . . . . . . . 1 . . . . . Branch Access Points 5 | . . . . . 1 1 1 . . . . . 1 . . . . . 1 . . . . Emergency Access Points 6 | . . . 1 . . . . . . . . 1 1 2 . . . . 1 . . . . Machine Index 1 | . . . . . . . . . . . . . . . . . . . . 1 . . . Terminal Index 5 | . . . . . . . 1 . . . . . 1 1 . . . 1 1 . . . . Recycling Unit Index 1 | . . . . . . . 1 . . . . . . . . . . . . . . . . Garrison Index 1 | . . . . . . . . . . . . 1 . . . . . . . . . . . Alert Level 9 | . . . . . . . 2 . . . . . 1 1 . . 1 1 1 2 . . . Unreport Threat 7 | . . . . . . . . . . . . . 2 1 . . 1 1 . 2 . . . Locate Traps 12 | . 3 . . . 1 . . . . . . 1 1 2 . . 1 1 . 2 . . . Disarm Traps 1 | . . . . . . . . . . . . . . . . . . . 1 . . . . Reprogram Traps 1 | . . . . . . . . . . . . 1 . . . . . . . . . . . Dispatch Records 2 | . . . . . . . . . . . . . 1 1 . . . . . . . . . Security Status 1 | . . . . . . . . . . . . . 1 . . . . . . . . . . Surveillance Status 1 | . . . 1 . . . . . . . . . . . . . . . . . . . . Patrol Status 1 | . . . . . . . . . . . . . . . . . . 1 . . . . . Recall Investigation 1 | . . . . . . . . . . . . . . 1 . . . . . . . . . Hauler Manifests 5 | . . . 1 . . 1 1 . . . . 1 1 . . . . . . . . . . Registered Components 2 | . . . . . . . . . . . . 1 . . . . . . 1 . . . . Registered Prototypes 1 | . . . . . . . . . . . . . . . . . . . 1 . . . . Zone Layout 9 | . 1 . 1 . . . . . . . . . 2 1 . . . 1 2 1 . . . Proto ID Catalog 1 | . . . . . . . . . . . . . . . . . . 1 . . . . . Protovariant Controls 1 | . . . . . . . . . . . . . . . . . . . . 1 . . . Release Object 2 | . . . . . . . 2 . . . . . . . . . . . . . . . . Gate Test 138-A 1 | . . . . . . . . . . . . . . . . . . . . . . . 1 Gate Test 138-B 1 | . . . . . . . . . . . . . . . . . . . . . . . 1 Gate Test 138-C 1 | . . . . . . . . . . . . . . . . . . . . . . . 1 Gate Test 138-END 1 | . . . . . . . . . . . . . . . . . . . . . . . 1 Fabricator Hacks 4 | . . . . . . . . . . . . . . . . . . . . 2 2 . . Network Status 2 | . . . . . . . . . . . . . . . . . . . . 1 1 . . Load Schematic 1 | . . . . . . . . . . . . . . . . . . . . . 1 . . Build 1 | . . . . . . . . . . . . . . . . . . . . 1 . . . Repair Station Hacks 3 | . . . . . 2 . . . 1 . . . . . . . . . . . . . . Scan Component 2 | . . . . . 1 . . . 1 . . . . . . . . . . . . . . Repair 1 | . . . . . 1 . . . . . . . . . . . . . . . . . . Recycling Unit Hacks . | . . . . . . . . . . . . . . . . . . . . . . . . Scanalyzer 11 | . . . 2 . 1 . . . . . . . 4 . . . 1 . 3 . . . . Insert Component 3 | . . . 1 . . . . . . . . . 1 . . . . . 1 . . . . Analyze 5 | . . . . . . . . . . . . . 3 . . . . . 2 . . . . Retrieve Study 3 | . . . 1 . 1 . . . . . . . . . . . 1 . . . . . . Garrison Access Hacks 2 | . . . . . . . . 1 . . . . . . . . . . . . 1 . . Seal Access 2 | . . . . . . . . 1 . . . . . . . . . . . . 1 . . Unauthorized Hacks 60 | . 12 . 5 . . . 13 2 2 . . 3 4 7 . . 1 3 7 1 . . . Terminals 54 | . 12 . 5 . . . 7 2 2 . . 3 4 7 . . 1 3 7 1 . . . Track 4 | . . . . . . . . . . . . . 1 2 . . . . 1 . . . . Assimilate 1 | . . . . . . . . . . . . . . . . . . . 1 . . . . Botnet 29 | . 6 . 2 . . . 2 2 2 . . 3 2 3 . . 1 3 3 . . . . Disrupt 2 | . . . . . . . . . . . . . . 1 . . . . . 1 . . . Operators 5 | . 1 . 1 . . . . . . . . . 1 1 . . . . 1 . . . . Skim 13 | . 5 . 2 . . . 5 . . . . . . . . . . . 1 . . . . Fabricators . | . . . . . . . . . . . . . . . . . . . . . . . . Repair Stations . | . . . . . . . . . . . . . . . . . . . . . . . . Recycling Units 6 | . . . . . . . 6 . . . . . . . . . . . . . . . . Tunnel 6 | . . . . . . . 6 . . . . . . . . . . . . . . . . Scanalyzers . | . . . . . . . . . . . . . . . . . . . . . . . . Garrison Access . | . . . . . . . . . . . . . . . . . . . . . . . . Data Cores Recovered 4 | . . . 1 . . . . . . . . . . . . . 1 . 1 1 . . . Used 1 | . . . . . . . . . . . . . . . . . 1 . . . . . . Hacking Detections 96 | . 6 . 7 . 5 4 6 3 13 . . 6 8 7 . 7 4 6 6 6 1 1 . Full Trace Events . | . . . . . . . . . . . . . . . . . . . . . . . . Feedback Events . | . . . . . . . . . . . . . . . . . . . . . . . . Feedback Blocked . | . . . . . . . . . . . . . . . . . . . . . . . . Robot Schematics Acquired 10 | . . . . . . . . . . . . . . . . . . 3 . 7 . . . Robots Built 1 | . . . . . . . . . . . . . . . . . . . . 1 . . . Authchips . | . . . . . . . . . . . . . . . . . . . . . . . . Time 111 | . . . . . . . . . . . . . . . . . . . . 111 . . . Total Robot Build Rating 9 | . . . . . . . . . . . . . . . . . . . . 9 . . . Part Schematics Acquired 24 | . . . . . . . . . . . . . 1 . . . . 9 1 13 . . . Parts Built . | . . . . . . . . . . . . . . . . . . . . . . . . Authchips . | . . . . . . . . . . . . . . . . . . . . . . . . Time . | . . . . . . . . . . . . . . . . . . . . . . . . Total Part Build Rating . | . . . . . . . . . . . . . . . . . . . . . . . . Part Studies Acquired 3 | . . . 1 . 1 . . . . . . . . . . . 1 . . . . . . Parts Repaired 1 | . . . . . 1 . . . . . . . . . . . . . . . . . . Time 32 | . . . . . 32 . . . . . . . . . . . . . . . . . . Parts Recycled . | . . . . . . . . . . . . . . . . . . . . . . . . Recycled Matter . | . . . . . . . . . . . . . . . . . . . . . . . . Retrieved Matter . | . . . . . . . . . . . . . . . . . . . . . . . . Retrieved Components . | . . . . . . . . . . . . . . . . . . . . . . . . Parts Scanalyzed 2 | . . . . . . . . . . . . . 1 . . . . . 1 . . . . Part Schematics Acquired 2 | . . . . . . . . . . . . . 1 . . . . . 1 . . . . Parts Damaged 1 | . . . . . . . . . . . . . 1 . . . . . . . . . . Bothacking | -11 -10 -10 -9 -8 -7 -7 -7 -5 -5 -5 -5 -5 -4 -4 -4 -3 -3 -3 -2 -2 -1 -1 -1 ------------ Run | Yrd Mat Min Mat Mat Fac Sto Rec Fac Ext Cet Arc Hub Fac Arm Lab Res Qua Frg Res Tes Acc Com Ac0 Used RIF Installer . | . . . . . . . . . . . . . . . . . . . . . . . . Robots Hacked 1 | . . . . . . 1 . . . . . . . . . . . . . . . . . Non-combat . | . . . . . . . . . . . . . . . . . . . . . . . . Combat 1 | . . . . . . 1 . . . . . . . . . . . . . . . . . Robot Hacks Applied 1 | . . . . . . 1 . . . . . . . . . . . . . . . . . parse_system 1 | . . . . . . 1 . . . . . . . . . . . . . . . . . Relay Couplers Released 8 | . . . . . . . . . . . . . . . . . 4 3 . . 1 . . Machine Destruction 4 | . . . . . . . . . . . . . . . . . . 3 . . 1 . . Programmers 4 | . . . . . . . . . . . . . . . . . 4 . . . . . . Fabnet Peak Effective % . | . . . . . . . . . . . . . . . . . . . . . . . . Robots Rewired 11 | . . . . . . . . . 7 . . . . 1 . . . . . 3 . . . Allies Hacked . | . . . . . . . . . . . . . . . . . . . . . . . . Hacks Repelled . | . . . . . . . . . . . . . . . . . . . . . . . . Allies | -11 -10 -10 -9 -8 -7 -7 -7 -5 -5 -5 -5 -5 -4 -4 -4 -3 -3 -3 -2 -2 -1 -1 -1 -------- Run | Yrd Mat Min Mat Mat Fac Sto Rec Fac Ext Cet Arc Hub Fac Arm Lab Res Qua Frg Res Tes Acc Com Ac0 Total Allies 37 | . . 6 . . . . . . 21 5 . . . 1 . . . . . 4 . . . Largest Group 11 | . . 4 3 . . . . . 11 9 2 . . 1 . . . . . 4 . . . Highest-Rated Group 717 | . . 71 63 . . . . . 371 717 104 . . 64 . . . . . 289 . . . Highest-Rated Ally 159 | . . 31 31 . . . . . 159 159 82 . . 64 . . . . . 79 . . . Total Orders 143 | . . . 1 . . . . . 5 . . . 12 . . . . . . . . . 125 STAY 11 | . . . 1 . . . . . 4 . . . 3 . . . . . . . . . 3 FOLLOW 1 | . . . . . . . . . 1 . . . . . . . . . . . . . . EXPLORE 62 | . . . . . . . . . . . . . 6 . . . . . . . . . 56 RETURN 69 | . . . . . . . . . . . . . 3 . . . . . . . . . 66 Ally Attacks 440 | . . 18 26 . . . . . 110 49 . . . . . . . . . 45 . . 192 Total Damage 14611 | . . 189 351 . . . . . 2713 1541 . . . . . . . . . 1890 . . 7927 Kills 63 | . . 3 8 . . . . . 30 3 . . . . . . . . . 7 . . 12 Allies Corrupted 3 | . . . . . . . . . . . . . . 1 . . . . . . . . 2 Allies Melted 1 | . . . . . . . 1 . . . . . . . . . . . . . . . . Intel | -11 -10 -10 -9 -8 -7 -7 -7 -5 -5 -5 -5 -5 -4 -4 -4 -3 -3 -3 -2 -2 -1 -1 -1 ------- Run | Yrd Mat Min Mat Mat Fac Sto Rec Fac Ext Cet Arc Hub Fac Arm Lab Res Qua Frg Res Tes Acc Com Ac0 Active Infowar (turns) 17846 | 23 1015 554 1196 597 706 640 7 974 356 . 193 429 1472 1604 60 2795 790 1662 515 402 592 1264 . Optics 6 | . . . . . . . . . . . . . . . . 5 . 1 . . . . . Sensors 3 | . . . . . . . . . . . . . . . . 2 . . . 1 . . . IFF 7069 | . . . . . . . . . . . . . . 934 60 2538 786 1483 494 330 444 . . Terrain 439 | . . . . . . . . . . . . . . . . 368 . 71 . . . . . Seismic 9138 | 23 1015 554 1196 597 706 640 7 974 356 . 193 414 1406 1057 . . . . . . . . . Triangulation 2 | . . . . . . . . . . . . . . . . 2 . . . . . . . Cloaking 2136 | . . . . . . . . . . . . . . . . . . . 295 205 372 1264 . Jamming 3696 | . . . . . . . . . . . . 125 1083 280 . 1443 5 760 . . . . . ECM 136 | . . . . . . . . . . . . . 131 . . 3 . 2 . . . . . Robot Analysis Total 2 | . . . . . . . . . 1 . . . . . . . . . . 1 . . . Derelict Logs Recovered . | . . . . . . . . . . . . . . . . . . . . . . . . Drone Launches 74 | . . . . . . . . . . . . . 5 . . . . . . . . . 69 Drone Recoveries 61 | . . . . . . . . . . . . . 4 . . . . . . . . . 57 Exploration | -11 -10 -10 -9 -8 -7 -7 -7 -5 -5 -5 -5 -5 -4 -4 -4 -3 -3 -3 -2 -2 -1 -1 -1 ------------- Run | Yrd Mat Min Mat Mat Fac Sto Rec Fac Ext Cet Arc Hub Fac Arm Lab Res Qua Frg Res Tes Acc Com Ac0 Turns Passed 32543 | 90 1245 587 1222 781 720 864 1590 1318 2227 681 547 773 1501 2120 578 3109 1321 3742 746 781 954 2706 2340 Spaces Moved 21291 | 48 706 325 684 361 465 473 872 825 907 181 101 455 986 1514 270 2277 1047 2898 793 851 1405 1451 1396 Core 4 | 4 . . . . . . . . . . . . . . . . . . . . . . . Treads 5777 | 44 427 325 7 . . . . . . . . . 653 92 . 755 . 125 233 851 1404 210 651 Legs 2960 | . . . . . . . . . . . . . 178 540 270 231 . 93 . . 1 1241 406 Wheels 5925 | . 279 . 677 361 465 473 872 825 907 181 93 . . 593 . . . . . . . . 199 Hover 5626 | . . . . . . . . . . . 8 455 87 289 . 1291 1047 1878 560 . . . 11 Flight 999 | . . . . . . . . . . . . . 68 . . . . 802 . . . . 129 Fastest Speed 38 | 50 115 160 120 120 130 130 130 130 129 135 146 110 72 72 132 74 74 38 38 38 38 63 74 Average Speed 99 | 150 144 160 122 134 134 143 156 131 144 162 158 123 98 92 132 100 75 59 40 38 38 121 117 Slowest Speed 230 | 160 160 160 160 180 145 145 180 215 230 210 210 197 161 133 132 170 125 125 89 38 63 205 146 Overloaded Moves . | . . . . . . . . . . . . . . . . . . . . . . . . Propulsion Burnouts . | . . . . . . . . . . . . . . . . . . . . . . . . Robots Hopped 1 | . . . . . . . . . . . . . . . . . . 1 . . . . . Potential Cave-ins 23 | . . . . . . . . . . . . . . . . . . 21 . . . . 2 Cave-ins Triggered 2 | . . . . . . . . . 1 . . . . . . . . 1 . . . . . Teleports 3 | . . . . . . . . . . . . . . . . . . 1 . . . 1 1 Exploration Rate (%) 58 | 5 90 63 73 32 14 59 98 21 88 59 74 49 29 66 96 73 66 52 22 86 43 58 97 Regions Visited 23 Branch Regions 14 Pre-discovered Areas 9 | . 2 . . . . . 7 . . . . . . . . . . . . . . . . Known Exits Taken 7 | . . . . . 1 1 . . . . 1 1 1 . . . . 1 1 . . . . Unknown Exits Taken 16 | 1 1 1 1 1 . . 1 1 1 1 . . . 1 1 1 1 . . 1 1 1 . Scrap Searched 1 | . . 1 . . . . . . . . . . . . . . . . . . . . . Spaces Dug 360 | . 1 . 4 . . . . 5 2 . . . 33 17 . 49 3 60 13 22 10 1 140 Terrain Destroyed 1569 | . 42 3 21 30 . 1 10 38 5 5 17 194 62 82 6 228 39 261 18 65 153 30 259 Melee 9 | . . . 4 . . . . 5 . . . . . . . . . . . . . . . Projectile 835 | . 6 3 . . . 1 10 . 2 5 17 15 41 71 6 181 39 243 18 28 52 29 68 AOE 722 | . 36 . 17 30 . . . 33 . . . 179 21 11 . 47 . 18 . 37 101 1 191 Terrain Rammed . | . . . . . . . . . . . . . . . . . . . . . . . . Walls Destroyed . | . . . . . . . . . . . . . . . . . . . . . . . . Machines Disabled . | . . . . . . . . . . . . . . . . . . . . . . . . Actions | -11 -10 -10 -9 -8 -7 -7 -7 -5 -5 -5 -5 -5 -4 -4 -4 -3 -3 -3 -2 -2 -1 -1 -1 --------- Run | Yrd Mat Min Mat Mat Fac Sto Rec Fac Ext Cet Arc Hub Fac Arm Lab Res Qua Frg Res Tes Acc Com Ac0 Total 31077 | 60 879 379 1012 580 562 620 1025 1019 1781 550 457 627 1462 2138 478 2917 1506 4631 1143 1163 1702 2352 2034 Wait 5987 | 1 88 41 236 142 39 50 60 128 692 321 310 105 314 369 145 227 268 876 185 100 127 776 387 Move 21264 | 47 705 324 683 360 464 472 871 824 906 180 100 454 985 1513 269 2276 1046 2894 792 850 1404 1450 1395 Hop 1 | . . . . . . . . . . . . . . . . . . 1 . . . . . Pick Up 415 | 4 23 2 15 8 19 14 12 15 15 9 3 4 31 45 16 31 14 82 19 8 6 16 4 Fast Attach 181 | 7 1 . 3 3 4 8 4 2 14 1 1 . 1 5 2 31 18 53 4 6 2 7 4 Attach 91 | . . . 2 3 5 1 7 5 6 2 2 1 4 1 2 8 . 20 6 1 6 6 3 Detach 85 | . 1 . 1 3 1 1 4 1 10 1 1 1 2 2 2 19 4 23 2 2 1 2 1 Swap 724 | . 17 4 16 24 9 24 5 6 3 7 5 18 30 30 10 151 50 155 36 48 33 23 20 Drop 491 | . 15 2 21 1 19 26 16 15 25 10 3 7 33 45 15 50 25 108 22 10 3 17 3 Fire 1651 | 1 29 6 31 36 2 24 42 16 34 19 32 37 62 105 17 124 55 394 77 130 120 41 217 Melee 11 | . . . 4 . . . . 7 . . . . . . . . . . . . . . . Ram 4 | . . . . . . . 4 . . . . . . . . . . . . . . . . Kick . | . . . . . . . . . . . . . . . . . . . . . . . . Crush 1 | . . . . . . . . . . . . . . . . . . . . 1 . . . Escape Stasis 89 | . . . . . . . . . 8 . . . . 16 . . 26 25 . 2 . 12 . Rewire 82 | . . . . . . . . . 68 . . . . 7 . . . . . 5 . 2 . Trap . | . . . . . . . . . . . . . . . . . . . . . . . . Miscellaneous . | . . . . . . . . . . . . . . . . . . . . . . . . Route ------- -11/Scrapyard -10/Materials (discovered 6 exits: *Mat x3 / [*Min x2] / [*Sub]) -10/Mines -9/Materials (discovered 4 exits: [*Mat x2] / *Min x2) -8/Materials -7/Factory (discovered 3 exits: *Sto / Low x2) -7/Storage (discovered 2 exits: [*Fac] / *Rec) -7/Recycling -5/Factory -5/Extension (discovered 2 exits: *Fac / *Cet) -5/Cetus (discovered 2 exits: *Fac / [*Arc]) -5/Archives (discovered 2 exits: *Fac / *Hub) -5/Hub_04(d) (discovered 2 exits: *Fac x2) -4/Factory (discovered 4 exits: *Res / Upp x2 / *Arm) -4/Armory (discovered 2 exits: *Res / *Lab) -4/Lab -3/Research (discovered 3 exits: *Res x2 / *Qua) -3/Quarantine (discovered 3 exits: *Res / [*Sec] / *Frg) -3/Protoforge -2/Research (discovered 2 exits: *Tes x2) -2/Testing -1/Access -1/Command (discovered 3 exits: [*Sur x2] / *Ac0) -1/Access_0 To Fleet Rendezvous History --------- Turn | Location | Event 5 | -11/Scrapyard | Discovered new exit (range 15) 91 | -11/Scrapyard | Entered Materials 295 | -10/Materials | Discovered new exit (range 5) 313 | -10/Materials | Build established: Mutant 363 | -10/Materials | Discovered new exit (range 16) 650 | -10/Materials | Discovered new exit (range 11) 743 | -10/Materials | Discovered new exit (range 15) 809 | -10/Materials | Discovered new exit (range 8) 867 | -10/Materials | Discovered new exit (range 3) 1053 | -10/Materials | Learned location of Recycling (-7) 1092 | -10/Materials | Learned Storage stockpile data 1122 | -10/Materials | Learned location of Mines (-9) 1336 | -10/Materials | Entered Mines 1397 | -10/Mines | A weapon hastily lodged in a ceiling crevice suddenly fell to the ground 1476 | -10/Mines | Assembled infested the area 1665 | -10/Mines | Discovered new exit (range 11) 1725 | -10/Mines | Assisted by bots powering up and referring to "LRC-V3" 1840 | -10/Mines | Received a Mining Laser from a helpful Derelict 1923 | -10/Mines | Entered Materials 1923 | -9/Materials | Accompanied by 3 allies 1923 | -9/Materials | Evolved 2 slots: Propulsion x1, Utility x1 1924 | -9/Materials | Identified exit to Mines 2150 | -9/Materials | Central database locked down 2424 | -9/Materials | Discovered new exit (range 7) 3142 | -9/Materials | Discovered new exit (range 4) 3145 | -9/Materials | Entered another Materials area 3145 | -8/Materials | Evolved 2 slots: Propulsion x1, Utility x1 3910 | -8/Materials | Discovered new exit (range 8) 3926 | -8/Materials | Entered Factory 3926 | -7/Factory | Evolved 2 slots: Power x1, Utility x1 3927 | -7/Factory | Identified exit to Storage 4121 | -7/Factory | Central database locked down 4199 | -7/Factory | Identified exit to Lower Caves 4553 | -7/Factory | Repaired Med. Armor Plating 4646 | -7/Factory | Entered Storage 4659 | -7/Storage | Met 01-MTF 4956 | -7/Storage | Identified exit to Recycling 5316 | -7/Storage | Discovered new exit (range 5) 5510 | -7/Storage | Entered Recycling 5510 | -7/Recycling | Accompanied by 2 allies (01-MTF) 5995 | -7/Recycling | Scanned before Scraplab entrance 6032 | -7/Recycling | Angered Scraplab inhabitants 6097 | -7/Recycling | Core integrity fell below 50% 6100 | -7/Recycling | Destroyed KN-7UR 6117 | -7/Recycling | Found Corrupted Prototype Energy Gun 6119 | -7/Recycling | Lost 7 parts (2p1n2u2w) 6185 | -7/Recycling | Found Prototype Device 6185 | -7/Recycling | Identified Scrap Engine 6535 | -7/Recycling | Discovered new exit (range 8) 6585 | -7/Recycling | Learned location of Extension (-5) 6650 | -7/Recycling | Learned Extension trap positions 6705 | -7/Recycling | Learned Factory trap positions 6751 | -7/Recycling | Learned location of 2 exits from Archives 6754 | -7/Recycling | Build established: Construct 6787 | -7/Recycling | Learned location of 1 exit from Proximity Caves 6834 | -7/Recycling | Learned Hub_04(d) security intel 6890 | -7/Recycling | Learned 2 Proximity Caves zone layouts 7099 | -7/Recycling | Identified KN-7UR's Autopenetrator 7100 | -7/Recycling | Entered Factory 7100 | -5/Factory | Evolved 4 slots: Propulsion x1, Utility x1, Weapon x2 7101 | -5/Factory | Loaded intel: 103 trap records 7395 | -5/Factory | Build established: Scavenger-Mutant 7985 | -5/Factory | Spotted B-75 Beast 8006 | -5/Factory | Build established: Scavenger-Gunner 8395 | -5/Factory | Discovered new exit (range 16) 8418 | -5/Factory | Entered Extension 8419 | -5/Extension | Loaded intel: 31 trap records 8656 | -5/Extension | Crushed by falling debris 8743 | -5/Extension | Disrupted transfer network 8826 | -5/Extension | Rescued a captive Derelict 8827 | -5/Extension | Rescued a captive Derelict 8852 | -5/Extension | Rescued a captive Derelict 8861 | -5/Extension | Rescued a captive Derelict 8891 | -5/Extension | Rescued a captive Derelict 8892 | -5/Extension | Rescued a captive Derelict 8904 | -5/Extension | Rescued a captive Derelict 8904 | -5/Extension | Rescued a captive Derelict 8923 | -5/Extension | Rescued a captive Derelict 8925 | -5/Extension | Rescued a captive Derelict 8956 | -5/Extension | Rescued a captive Derelict 8967 | -5/Extension | Rescued a captive Derelict 8968 | -5/Extension | Rescued a captive Derelict 9201 | -5/Extension | Spotted B-75 Beast 9211 | -5/Extension | Allies destroyed B-75 Beast 9218 | -5/Extension | Spotted B-75 Beast 9242 | -5/Extension | Destroyed B-75 Beast 9281 | -5/Extension | Lost 11 allies 9504 | -5/Extension | Rescued A7 9549 | -5/Extension | Found Imp. Powered Armor 9553 | -5/Extension | Found Imp. Powered Armor 9556 | -5/Extension | Found Imp. Powered Armor 10306 | -5/Extension | Discovered new exit (range 10) 10307 | -5/Extension | Discovered new exit (range 6) 10428 | -5/Extension | Build established: Commander-Construct 10645 | -5/Extension | Entered Cetus 10645 | -5/Cetus | Accompanied by 8 allies (A7) 10650 | -5/Cetus | Acquired a Cetus Manufacturing Module code from A7 10667 | -5/Cetus | Spotted Cetus Guard 10667 | -5/Cetus | Spotted Cetus Guard 10671 | -5/Cetus | Destroyed Cetus Guard 10677 | -5/Cetus | Destroyed Cetus Guard 10677 | -5/Cetus | Spotted Cetus Guard 10678 | -5/Cetus | Spotted Cetus Guard 10685 | -5/Cetus | Destroyed Cetus Guard 10687 | -5/Cetus | Destroyed Cetus Guard 10715 | -5/Cetus | Lost 4 allies 10956 | -5/Cetus | Started Cetus Manufacturing Module 10981 | -5/Cetus | Manufactured an Enhanced Grunt 11006 | -5/Cetus | Manufactured an Enhanced Grunt 11031 | -5/Cetus | Manufactured an Enhanced Grunt 11056 | -5/Cetus | Manufactured an Enhanced Grunt 11074 | -5/Cetus | Discovered new exit (range 15) 11081 | -5/Cetus | Manufactured an Enhanced Grunt 11104 | -5/Cetus | Spotted Cetus Guard 11104 | -5/Cetus | Spotted Cetus Guard 11108 | -5/Cetus | Spotted Cetus Guard 11109 | -5/Cetus | Spotted Cetus Guard 11125 | -5/Cetus | Destroyed Cetus Guard 11135 | -5/Cetus | Destroyed Cetus Guard 11145 | -5/Cetus | Destroyed Cetus Guard 11153 | -5/Cetus | Allies destroyed Cetus Guard 11170 | -5/Cetus | Lost 6 allies 11197 | -5/Cetus | Discovered new exit (range 15) 11211 | -5/Cetus | Met Revision 17 11271 | -5/Cetus | Found Prototype Device 11271 | -5/Cetus | Identified Exp. Thermal Shield 11280 | -5/Cetus | Extracted ID and sensor layout for unrecognized location from A7's data core 11326 | -5/Cetus | Entered Archives 11326 | -5/Archives | Accompanied by 2 allies 11327 | -5/Archives | Identified exit to Hub_04(d) 11327 | -5/Archives | Identified exit to Factory 11439 | -5/Archives | Build established: Construct 11518 | -5/Archives | Found Exp. Thermal Shield 11873 | -5/Archives | Entered Hub_04(d) 11873 | -5/Hub_04(d) | Discovered exit to Factory (range 11) 12567 | -5/Hub_04(d) | Discovered exit to Factory (range 4) 12635 | -5/Hub_04(d) | Network Hub disabled 12646 | -5/Hub_04(d) | Entered Factory 12646 | -4/Factory | Evolved 2 slots: Utility x2 12904 | -4/Factory | Discovered new exit (range 12) 13283 | -4/Factory | Found Quantum Capacitor 13935 | -4/Factory | Identified exit to Upper Caves 13935 | -4/Factory | Identified exit to Armory 14147 | -4/Factory | Entered Armory 14148 | -4/Armory | Met VL-GR5, who suggested a friendly competition 14201 | -4/Armory | Spotted B-86 Titan 14207 | -4/Armory | Destroyed B-86 Titan 14258 | -4/Armory | Found Fusion Bomb Launcher 14260 | -4/Armory | Found Gamma Bomb Array 14488 | -4/Armory | Destroyed 7 combat bots 14490 | -4/Armory | Congratulated by VL-GR5 on winning the competition 14493 | -4/Armory | Found Prototype Processor 14493 | -4/Armory | Identified VL-GR5's Timing Chip 14661 | -4/Armory | VL-GR5 left a parting gift on exiting Armory 14717 | -4/Armory | Found Quantum Capacitor 15400 | -4/Armory | System corruption reached 10% 15858 | -4/Armory | Discovered new exit (range 3) 16264 | -4/Armory | Discovered new exit (range 3) 16267 | -4/Armory | Entered Lab 16267 | -4/Lab | Discovered new exit (range 9) 16282 | -4/Lab | Hidden lab's door opened automatically 16282 | -4/Lab | Sensor layout match revealed 16283 | -4/Lab | Gained access to the hidden lab's interior 16421 | -4/Lab | Unable to decrypt terminal 16435 | -4/Lab | Found Alien Artifact 16435 | -4/Lab | Identified Core Reset Matrix 16435 | -4/Lab | Used Core Reset Matrix 16439 | -4/Lab | Sensed 3 artifacts in vicinity 16450 | -4/Lab | Found Transdimensional Reconstructor 16458 | -4/Lab | Found Integrated Dissipator 16458 | -4/Lab | Installed Integrated Dissipator, increased core heat dissipation (+20) 16462 | -4/Lab | Detected for breach 16474 | -4/Lab | Confronted by A5 16509 | -4/Lab | Destroyed A5 16529 | -4/Lab | Found Prototype Hackware 16548 | -4/Lab | Found Core Regenerator 16587 | -4/Lab | Found Prototype Protection 16587 | -4/Lab | Identified Med. Regenerative Plating 16684 | -4/Lab | Found Prototype Energy Gun 16687 | -4/Lab | Found Prototype Energy Gun 16694 | -4/Lab | Found Prototype Hackware 16716 | -4/Lab | Unable to decrypt terminal 16753 | -4/Lab | Discovered new exit (range 10) 16845 | -4/Lab | Entered Research 16845 | -3/Research | Evolved 2 slots: Power x1, Weapon x1 16845 | -3/Research | Identified Tachyon Dispersion Ray (x2) 16976 | -3/Research | Spotted B-86 Titan 17045 | -3/Research | Revision forces began assault on 0b10 17545 | -3/Research | Research terminal network offline 17633 | -3/Research | Discovered new exit (range 6) 17641 | -3/Research | Identified exit to Research 17776 | -3/Research | Identified Quantum Router 17791 | -3/Research | Identified Exp. System Shield 17799 | -3/Research | Spotted Striker 17801 | -3/Research | Destroyed Striker 17804 | -3/Research | Spotted Executioner 17807 | -3/Research | Destroyed Executioner 17820 | -3/Research | Intercept squad dispatched 17822 | -3/Research | Found Prototype Processor 17822 | -3/Research | Identified Exp. Core Analyzer 17824 | -3/Research | Spotted Tracker 17833 | -3/Research | Destroyed Tracker 17833 | -3/Research | Spotted Combat Programmer 17840 | -3/Research | Destroyed Combat Programmer 17860 | -3/Research | Found Prototype Processor 17860 | -3/Research | Identified Exp. Targeting Computer 17864 | -3/Research | Found Prototype Energy Gun 17864 | -3/Research | Identified Immobilizer 17943 | -3/Research | Spotted Executioner 17944 | -3/Research | Spotted Striker 17949 | -3/Research | Destroyed Striker 17951 | -3/Research | Destroyed Executioner 17970 | -3/Research | Found Prototype Device 17970 | -3/Research | Identified Adv. Kinecellerator 18013 | -3/Research | Build established: Scavenger-Construct 18433 | -3/Research | Build established: Construct 18560 | -3/Research | Discovered exit to Research (range 10) 18686 | -3/Research | Intercept squad dispatched 18702 | -3/Research | Spotted Tracker 18703 | -3/Research | Spotted Tracker 18703 | -3/Research | Spotted Tracker 18711 | -3/Research | Destroyed Tracker 18717 | -3/Research | Destroyed Tracker 18718 | -3/Research | Spotted Combat Programmer 18718 | -3/Research | Spotted Combat Programmer 18718 | -3/Research | Spotted Combat Programmer 18720 | -3/Research | Destroyed Combat Programmer 18726 | -3/Research | Destroyed Combat Programmer 18728 | -3/Research | System corruption reached 10% 18730 | -3/Research | Destroyed Combat Programmer 18841 | -3/Research | Spotted Striker 18861 | -3/Research | Destroyed Striker 18928 | -3/Research | Spotted Striker 18928 | -3/Research | Destroyed Striker 19010 | -3/Research | Destroyed Tracker 19028 | -3/Research | Spotted Striker 19034 | -3/Research | Destroyed Striker 19043 | -3/Research | Spotted Striker 19044 | -3/Research | Destroyed Striker 19046 | -3/Research | Spotted Striker 19049 | -3/Research | Destroyed Striker 19056 | -3/Research | Intercept squad dispatched 19072 | -3/Research | Destroyed 8 combat bots 19080 | -3/Research | Build established: Scavenger-Construct 19081 | -3/Research | Spotted Tracker 19082 | -3/Research | Spotted Tracker 19083 | -3/Research | Destroyed Tracker 19083 | -3/Research | Destroyed Tracker 19097 | -3/Research | Spotted Combat Programmer 19127 | -3/Research | Found Prototype Device 19127 | -3/Research | Identified Exp. Phase Shifter 19131 | -3/Research | Found Exp. Targeting Computer 19145 | -3/Research | Spotted Striker 19149 | -3/Research | Destroyed Striker 19177 | -3/Research | Lost 4 allies 19179 | -3/Research | Spotted Executioner 19187 | -3/Research | Spotted Striker 19191 | -3/Research | Destroyed Striker 19195 | -3/Research | Destroyed Executioner 19263 | -3/Research | Spotted Executioner 19264 | -3/Research | Spotted Striker 19268 | -3/Research | Destroyed Striker 19268 | -3/Research | Destroyed Executioner 19278 | -3/Research | Found Exp. Targeting Computer 19554 | -3/Research | Found Adv. Kinecellerator 19705 | -3/Research | Intercept squad dispatched 19722 | -3/Research | Spotted Tracker 19724 | -3/Research | Spotted Tracker 19725 | -3/Research | Spotted Tracker 19728 | -3/Research | Destroyed Tracker 19739 | -3/Research | Destroyed Tracker 19739 | -3/Research | Destroyed Tracker 19786 | -3/Research | Spotted Combat Programmer 19787 | -3/Research | Spotted Combat Programmer 19788 | -3/Research | Spotted Combat Programmer 19793 | -3/Research | Destroyed Combat Programmer 19797 | -3/Research | Destroyed Combat Programmer 19803 | -3/Research | Destroyed Combat Programmer 19938 | -3/Research | Discovered new exit (range 15) 19954 | -3/Research | Entered Quarantine 19955 | -3/Quarantine | Detected hypermatrix surge 19955 | -3/Quarantine | Sensed 18 artifacts in vicinity 19961 | -3/Quarantine | Found Subatomic Replicator 19990 | -3/Quarantine | Found Prototype Launcher 19990 | -3/Quarantine | Identified Hellfire Missile Launcher 20022 | -3/Quarantine | Found Matter Drive 20095 | -3/Quarantine | Found Core Reset Matrix 20098 | -3/Quarantine | Sensed 15 artifacts in vicinity 20171 | -3/Quarantine | Unchained authorized (6S-H0T) 20204 | -3/Quarantine | First assault squad dispatched 20322 | -3/Quarantine | Destroyed 6S-H0T 20327 | -3/Quarantine | Found Prototype Ballistic Gun 20327 | -3/Quarantine | Identified 6S-H0T's Six Shooter 20380 | -3/Quarantine | Build established: Alien-Construct 20447 | -3/Quarantine | Intercept squad dispatched 20453 | -3/Quarantine | Spotted Tracker 20455 | -3/Quarantine | Spotted Tracker 20456 | -3/Quarantine | Destroyed Tracker 20456 | -3/Quarantine | Destroyed Tracker 20467 | -3/Quarantine | Spotted Combat Programmer 20470 | -3/Quarantine | Spotted Combat Programmer 20473 | -3/Quarantine | Destroyed Combat Programmer 20475 | -3/Quarantine | Destroyed Combat Programmer 20477 | -3/Quarantine | Found Prototype Energy Gun 20477 | -3/Quarantine | Identified Immobilizer 20562 | -3/Quarantine | Found Transdimensional Reconstructor 20616 | -3/Quarantine | Discovered exit to Research (range 6) 20647 | -3/Quarantine | Found Phase Redirector 20722 | -3/Quarantine | Spotted Fortress 20744 | -3/Quarantine | Destroyed Fortress 20838 | -3/Quarantine | Discovered new exit (range 6) 20838 | -3/Quarantine | Discovered new exit (range 7) 21096 | -3/Quarantine | Found Dimensional Node Initializer 21275 | -3/Quarantine | Entered Protoforge 21276 | -3/Protoforge | Sensed 2 artifacts in vicinity 21301 | -3/Protoforge | Spotted Hotshot 21326 | -3/Protoforge | Superfortress began startup sequence 21327 | -3/Protoforge | Spotted Hotshot 21327 | -3/Protoforge | Spotted Hotshot 21327 | -3/Protoforge | Spotted Hotshot 21327 | -3/Protoforge | Destroyed Hotshot 21332 | -3/Protoforge | Destroyed Hotshot 21334 | -3/Protoforge | Destroyed Hotshot 21338 | -3/Protoforge | Destroyed Hotshot 21459 | -3/Protoforge | Spotted Hotshot 21467 | -3/Protoforge | Destroyed Hotshot 21525 | -3/Protoforge | First assault squad dispatched 21623 | -3/Protoforge | Build established: Scavenger-Construct 21798 | -3/Protoforge | Spotted Hotshot 21842 | -3/Protoforge | Spotted Hotshot 21843 | -3/Protoforge | Spotted Hotshot 21845 | -3/Protoforge | Destroyed Hotshot 21847 | -3/Protoforge | Spotted Hotshot 21847 | -3/Protoforge | Destroyed Hotshot 21849 | -3/Protoforge | Destroyed Hotshot 21854 | -3/Protoforge | Spotted Hotshot 21854 | -3/Protoforge | Spotted Hotshot 21856 | -3/Protoforge | Spotted Hotshot 21858 | -3/Protoforge | Destroyed Hotshot 21862 | -3/Protoforge | Destroyed Hotshot 21864 | -3/Protoforge | Spotted Hotshot 21866 | -3/Protoforge | Spotted Hotshot 21866 | -3/Protoforge | Destroyed Hotshot 21867 | -3/Protoforge | Destroyed Hotshot 21868 | -3/Protoforge | Destroyed Hotshot 21869 | -3/Protoforge | Destroyed Hotshot 21878 | -3/Protoforge | Spotted Hotshot 21890 | -3/Protoforge | Destroyed 15 combat bots 21894 | -3/Protoforge | Destroyed Hotshot 21915 | -3/Protoforge | Intercept squad dispatched 21920 | -3/Protoforge | Spotted Tracker 21925 | -3/Protoforge | Destroyed Tracker 21926 | -3/Protoforge | Spotted Combat Programmer 21929 | -3/Protoforge | Destroyed Combat Programmer 22033 | -3/Protoforge | Initialized slip node 22385 | -3/Protoforge | Found Prototype Launcher 22385 | -3/Protoforge | Identified Cep. Concussive Dispersal Blaster 22386 | -3/Protoforge | Destroyed 7 combat bots 22411 | -3/Protoforge | Found Prototype Ballistic Gun 22411 | -3/Protoforge | Identified Cep. XC Strikerail 22443 | -3/Protoforge | Additional patrols dispatched to research labs 22479 | -3/Protoforge | Spotted Immortal 22479 | -3/Protoforge | Spotted Decapitator 22480 | -3/Protoforge | Spotted Decapitator 22482 | -3/Protoforge | Spotted Decapitator 22484 | -3/Protoforge | Spotted Decapitator 22487 | -3/Protoforge | Destroyed Decapitator 22487 | -3/Protoforge | Destroyed Decapitator 22489 | -3/Protoforge | Destroyed Decapitator 22491 | -3/Protoforge | Destroyed Decapitator 22506 | -3/Protoforge | Destroyed Immortal 22516 | -3/Protoforge | Found Prototype Processor 22522 | -3/Protoforge | Crushed by falling debris 22554 | -3/Protoforge | Found Prototype Device 22554 | -3/Protoforge | Identified Crosscalibrator 22563 | -3/Protoforge | Spotted Immortal 22566 | -3/Protoforge | Spotted Decapitator 22566 | -3/Protoforge | Spotted Decapitator 22566 | -3/Protoforge | Spotted Decapitator 22566 | -3/Protoforge | Spotted Decapitator 22568 | -3/Protoforge | Spotted Immortal 22569 | -3/Protoforge | Identified Exp. Melee Analysis Suite 22579 | -3/Protoforge | Destroyed Immortal 22585 | -3/Protoforge | Destroyed Immortal 22615 | -3/Protoforge | Found Cep. Antigrav Storage Unit 22617 | -3/Protoforge | Found Cep. NT7 Matterbank 22622 | -3/Protoforge | Found Prototype Device 22622 | -3/Protoforge | Identified Cep. Matter Streamer 22627 | -3/Protoforge | Found Cep. Chromion Battery 22630 | -3/Protoforge | Found Cep. Chromion Battery 22633 | -3/Protoforge | Found Cep. Chromion Battery 22636 | -3/Protoforge | Found Cep. Chromion Battery 22641 | -3/Protoforge | Found Cep. Chromion Battery 22647 | -3/Protoforge | Found Cep. NT7 Matterbank 22674 | -3/Protoforge | Core integrity fell below 50% 22677 | -3/Protoforge | Destroyed Decapitator 22682 | -3/Protoforge | Destroyed Decapitator 22682 | -3/Protoforge | Destroyed Decapitator 22749 | -3/Protoforge | Spotted V212-n 22756 | -3/Protoforge | Destroyed V212-n 22774 | -3/Protoforge | Intercept squad dispatched 22804 | -3/Protoforge | Spotted Tracker 22804 | -3/Protoforge | Spotted Tracker 22805 | -3/Protoforge | Spotted Tracker 22805 | -3/Protoforge | Destroyed Tracker 22807 | -3/Protoforge | Destroyed Tracker 22813 | -3/Protoforge | Destroyed Tracker 22830 | -3/Protoforge | Found Prototype Protection 22830 | -3/Protoforge | Identified Cep. RG22 Armor 22836 | -3/Protoforge | Found Prototype Device 22845 | -3/Protoforge | Identified Exp. EM Shield 22869 | -3/Protoforge | Spotted Combat Programmer 22870 | -3/Protoforge | Spotted Combat Programmer 22870 | -3/Protoforge | Spotted Combat Programmer 22876 | -3/Protoforge | Destroyed Combat Programmer 22952 | -3/Protoforge | Destroyed Combat Programmer 22968 | -3/Protoforge | Spotted Immortal 22969 | -3/Protoforge | Spotted Immortal 22974 | -3/Protoforge | Destroyed Immortal 22982 | -3/Protoforge | Destroyed Immortal 23000 | -3/Protoforge | Found Prototype Device 23000 | -3/Protoforge | Identified Cep. Antimissile System 23003 | -3/Protoforge | Used Core Regenerator, restored core integrity (+325) 23035 | -3/Protoforge | Destroyed 12 combat bots 23042 | -3/Protoforge | Found Cep. Zero-point Core 23060 | -3/Protoforge | Spotted V024-s 23061 | -3/Protoforge | Spotted V782-c 23062 | -3/Protoforge | Spotted V419-r 23065 | -3/Protoforge | Spotted V710-j 23066 | -3/Protoforge | Destroyed V024-s 23073 | -3/Protoforge | Destroyed V782-c 23088 | -3/Protoforge | Destroyed V419-r 23097 | -3/Protoforge | Destroyed V710-j 23100 | -3/Protoforge | Found Prototype Device 23100 | -3/Protoforge | Identified Thermal Barrier 23104 | -3/Protoforge | Found Prototype Device 23104 | -3/Protoforge | Identified Exp. Actuator Array 23112 | -3/Protoforge | Found Prototype Processor 23112 | -3/Protoforge | Identified Exp. Target Analyzer 23129 | -3/Protoforge | Found Cep. Countertargeting System 23140 | -3/Protoforge | Found Cep. Countertargeting System 23243 | -3/Protoforge | Destroyed 9 combat bots 23302 | -3/Protoforge | Spotted Decapitator 23303 | -3/Protoforge | Spotted Decapitator 23303 | -3/Protoforge | Spotted Decapitator 23303 | -3/Protoforge | Spotted V344-h 23304 | -3/Protoforge | Spotted V166-c 23318 | -3/Protoforge | Destroyed Decapitator 23321 | -3/Protoforge | Destroyed V344-h 23321 | -3/Protoforge | Destroyed Decapitator 23329 | -3/Protoforge | Destroyed Decapitator 23336 | -3/Protoforge | Destroyed V166-c 23354 | -3/Protoforge | Found Prototype Device 23357 | -3/Protoforge | Destroyed 8 combat bots 23360 | -3/Protoforge | Found Exp. Kinecellerator 23366 | -3/Protoforge | Found Prototype Device 23369 | -3/Protoforge | Identified Cep. Recoil Nullifier 23373 | -3/Protoforge | Found Prototype Device 23383 | -3/Protoforge | Identified Mni. Quantum Capacitor 23387 | -3/Protoforge | Identified Exp. Force Booster 23388 | -3/Protoforge | Found Prototype Processor 23397 | -3/Protoforge | Identified Cep. Melee Reflex Suite 23411 | -3/Protoforge | Found Cep. Weapon Articulator 23579 | -3/Protoforge | Intercept squad dispatched 23601 | -3/Protoforge | Spotted Tracker 23602 | -3/Protoforge | Spotted Tracker 23603 | -3/Protoforge | Destroyed Tracker 23603 | -3/Protoforge | Spotted Tracker 23605 | -3/Protoforge | Destroyed Tracker 23606 | -3/Protoforge | Destroyed Tracker 23649 | -3/Protoforge | Spotted Combat Programmer 23650 | -3/Protoforge | Destroyed Combat Programmer 23651 | -3/Protoforge | Spotted Combat Programmer 23652 | -3/Protoforge | Spotted Combat Programmer 23652 | -3/Protoforge | Destroyed Combat Programmer 23657 | -3/Protoforge | Destroyed Combat Programmer 23714 | -3/Protoforge | Destroyed 8 combat bots 23714 | -3/Protoforge | Found Cep. Countertargeting System 23717 | -3/Protoforge | Found Cep. Countertargeting System 23753 | -3/Protoforge | Spotted V544-j 23777 | -3/Protoforge | Found Prototype Device 23804 | -3/Protoforge | Identified Exp. Remote Shield 23804 | -3/Protoforge | Found Faulty Cep. Energy Mantle 23823 | -3/Protoforge | Found Prototype Device 23824 | -3/Protoforge | Identified Cep. Beam Splitter 23825 | -3/Protoforge | Found Cep. Phase Shift Module 23838 | -3/Protoforge | Found Prototype Protection 23838 | -3/Protoforge | Identified Centrium Heavy Armor Plating 23870 | -3/Protoforge | Spotted Hotshot 23877 | -3/Protoforge | Spotted Hotshot 23878 | -3/Protoforge | Spotted Hotshot 23893 | -3/Protoforge | Destroyed Hotshot 23893 | -3/Protoforge | Spotted Hotshot 23895 | -3/Protoforge | Destroyed Hotshot 23897 | -3/Protoforge | Destroyed Hotshot 23903 | -3/Protoforge | Destroyed Hotshot 23930 | -3/Protoforge | Spotted Decapitator 23930 | -3/Protoforge | Spotted Decapitator 23934 | -3/Protoforge | Destroyed Decapitator 23939 | -3/Protoforge | Destroyed Decapitator 23949 | -3/Protoforge | Spotted Decapitator 23959 | -3/Protoforge | Destroyed Decapitator 23969 | -3/Protoforge | Found Prototype Energy Cannon 23977 | -3/Protoforge | Found Prototype Energy Cannon 23978 | -3/Protoforge | Identified Cep. Plasma Driver (x2) 23982 | -3/Protoforge | Found Prototype Energy Gun 23999 | -3/Protoforge | Identified Cep. Variable Chargecaster 24001 | -3/Protoforge | Found Prototype Ballistic Cannon 24017 | -3/Protoforge | Identified Cep. Heavy Railcannon 24057 | -3/Protoforge | Build established: Construct 24151 | -3/Protoforge | Found Prototype Slashing Weapon 24169 | -3/Protoforge | Identified Exp. Terror Saw 24181 | -3/Protoforge | Spotted V583-n 24187 | -3/Protoforge | Destroyed V583-n 24188 | -3/Protoforge | Spotted Immortal 24192 | -3/Protoforge | Spotted Immortal 24192 | -3/Protoforge | Spotted Immortal 24208 | -3/Protoforge | Destroyed Immortal 24210 | -3/Protoforge | Destroyed Immortal 24237 | -3/Protoforge | Destroyed Immortal 24258 | -3/Protoforge | Found Prototype Device 24265 | -3/Protoforge | Identified Exp. Cloaking Device 24266 | -3/Protoforge | Found Prototype Device 24276 | -3/Protoforge | Destroyed 15 combat bots 24276 | -3/Protoforge | Identified Exp. Thermal Defense Suite 24301 | -3/Protoforge | Spotted Immortal 24302 | -3/Protoforge | Spotted Immortal 24305 | -3/Protoforge | Spotted V529-y 24313 | -3/Protoforge | Intercept squad dispatched 24321 | -3/Protoforge | Destroyed V529-y 24329 | -3/Protoforge | Destroyed Immortal 24335 | -3/Protoforge | Destroyed Immortal 24339 | -3/Protoforge | Spotted Tracker 24340 | -3/Protoforge | Spotted Tracker 24340 | -3/Protoforge | Spotted Tracker 24342 | -3/Protoforge | Destroyed Tracker 24344 | -3/Protoforge | Destroyed Tracker 24344 | -3/Protoforge | Destroyed Tracker 24397 | -3/Protoforge | Spotted Combat Programmer 24399 | -3/Protoforge | Destroyed Combat Programmer 24403 | -3/Protoforge | Spotted Combat Programmer 24405 | -3/Protoforge | Destroyed Combat Programmer 24407 | -3/Protoforge | Spotted Combat Programmer 24421 | -3/Protoforge | Destroyed Combat Programmer 24449 | -3/Protoforge | Found Prototype Device 24449 | -3/Protoforge | Identified Exp. Shock Absorption System 24454 | -3/Protoforge | Found Prototype Device 24454 | -3/Protoforge | Identified Exp. Shield Generator 24471 | -3/Protoforge | Found Prototype Processor 24471 | -3/Protoforge | Identified Spectral Analyzer 24495 | -3/Protoforge | Found Cep. Network Penetrator 24571 | -3/Protoforge | Found Prototype Launcher 24575 | -3/Protoforge | Identified Cep. EMP Blanket Launcher 24584 | -3/Protoforge | Found Faulty Cep. Rapid Grenade Launcher 24588 | -3/Protoforge | Found Faulty Cep. Rapid Grenade Launcher 24725 | -3/Protoforge | Found Cep. Nanofilaments [Conductive] 24725 | -3/Protoforge | Installed Cep. Nanofilaments [Conductive], 2 resistances modified: TH -15%, EM +25% 24767 | -3/Protoforge | Spotted AP7-3 24771 | -3/Protoforge | Spotted AP7-3 24773 | -3/Protoforge | Destroyed AP7-3 24810 | -3/Protoforge | Destroyed 9 combat bots 24822 | -3/Protoforge | Destroyed AP7-3 24835 | -3/Protoforge | Found Prototype Device 24835 | -3/Protoforge | Identified Exp. ECM Suite 24854 | -3/Protoforge | Found Prototype Device 24855 | -3/Protoforge | Found Prototype Device 24868 | -3/Protoforge | Identified Cep. Thermoelectric Network 24869 | -3/Protoforge | Found Prototype Device 24886 | -3/Protoforge | Identified Cep. Cloak Mesh 24887 | -3/Protoforge | Found Prototype Processor 24903 | -3/Protoforge | Identified Cep. Core Analysis Suite 24904 | -3/Protoforge | Identified Cep. Impact Drone Bay 24913 | -3/Protoforge | Found Faulty Cep. Impact Drone Bay 24914 | -3/Protoforge | Found Faulty Cep. Dimensional Manipulator 24919 | -3/Protoforge | Found Cep. Thermoelectric Network 24949 | -3/Protoforge | Found Cep. Core Analysis Suite 24952 | -3/Protoforge | Used Subatomic Replicator to replicate Faulty Cep. Energy Mantle 24979 | -3/Protoforge | Found Cep. Cloak Mesh 25015 | -3/Protoforge | Warped through subspace to slip node 25017 | -3/Protoforge | Entered Research 25017 | -2/Research | Evolved 2 slots: Utility x2 25051 | -2/Research | Build established: Alien-Construct 25200 | -2/Research | Unchained authorized (DW-4LL) 25267 | -2/Research | First assault squad dispatched 25269 | -2/Research | Allied Derelicts emerged from ambush trap array 25337 | -2/Research | Lost 3 allies 25366 | -2/Research | Build established: Hacker-Construct 25411 | -2/Research | Identified exit to Testing 25421 | -2/Research | DW-4LL burst out of a wall 25429 | -2/Research | Destroyed DW-4LL 25447 | -2/Research | Found Prototype Treads 25463 | -2/Research | Identified DW-4LL's Griptreads 25467 | -2/Research | Found Prototype Protection 25473 | -2/Research | Identified DW-4LL's Blast Wall 25487 | -2/Research | Found Centrium Heavy Armor Plating 25617 | -2/Research | Spotted B-90 Cyclops 25654 | -2/Research | Unchained authorized (GL-D0S) 25736 | -2/Research | High security lockdown imminent 25763 | -2/Research | Entered Testing 25778 | -2/Testing | Destroyed 10 combat bots 25820 | -2/Testing | Found Prototype Energy Cannon 25820 | -2/Testing | Identified Cld. Nova Cannon 25936 | -2/Testing | Found Prototype Device 25936 | -2/Testing | Identified Exp. Hardlight Generator 25993 | -2/Testing | Intercept squad dispatched 26008 | -2/Testing | Spotted Tracker 26008 | -2/Testing | Spotted Tracker 26009 | -2/Testing | Destroyed Tracker 26011 | -2/Testing | Destroyed Tracker 26038 | -2/Testing | Spotted Combat Programmer 26039 | -2/Testing | Spotted Combat Programmer 26041 | -2/Testing | Destroyed Combat Programmer 26046 | -2/Testing | Destroyed Combat Programmer 26072 | -2/Testing | Spotted Alpha 7 26081 | -2/Testing | Destroyed Alpha 7 26099 | -2/Testing | Rewired NU-PNW(K) 26102 | -2/Testing | Rewired SN-4DX(K) 26103 | -2/Testing | Rewired HD-TC8(K) 26241 | -2/Testing | Fabricated C-65 Expert? 26263 | -2/Testing | First assault squad dispatched 26291 | -2/Testing | High security lockdown imminent 26371 | -2/Testing | High security lockdown engaged 26398 | -2/Testing | Spotted Executioner 26400 | -2/Testing | Destroyed Executioner 26402 | -2/Testing | Spotted Striker 26415 | -2/Testing | Destroyed Striker 26471 | -2/Testing | Destroyed 40 combat bots 26475 | -2/Testing | Found Prototype Energy Cannon 26497 | -2/Testing | Discovered new exit (range 9) 26514 | -2/Testing | Found Exp. Core Analyzer 26533 | -2/Testing | Spotted Executioner 26536 | -2/Testing | Scanned by Researcher 26537 | -2/Testing | Spotted Investigator 26542 | -2/Testing | Destroyed Investigator 26544 | -2/Testing | Entered Access 26544 | -1/Access | Evolved 2 slots: Utility x2 26684 | -1/Access | High security lockdown imminent 26764 | -1/Access | High security lockdown engaged 26816 | -1/Access | Intercept squad dispatched 26827 | -1/Access | Spotted Tracker 26828 | -1/Access | Spotted Tracker 26828 | -1/Access | Destroyed Tracker 26831 | -1/Access | Destroyed Tracker 26860 | -1/Access | Spotted Combat Programmer 26863 | -1/Access | Spotted Combat Programmer 26865 | -1/Access | Destroyed Combat Programmer 26871 | -1/Access | Destroyed Combat Programmer 26914 | -1/Access | Destroyed 15 combat bots 26944 | -1/Access | Garrison activated, responded to threat 27018 | -1/Access | Destroyed 9 combat bots 27046 | -1/Access | Spotted B-99 Colossus 27062 | -1/Access | Spotted Striker 27076 | -1/Access | Destroyed Striker 27086 | -1/Access | Destroyed B-99 Colossus 27124 | -1/Access | Destroyed 14 combat bots 27195 | -1/Access | Destroyed 7 combat bots 27239 | -1/Access | Intercept squad dispatched 27243 | -1/Access | Spotted Tracker 27243 | -1/Access | Spotted Tracker 27244 | -1/Access | Spotted Tracker 27251 | -1/Access | Destroyed Tracker 27251 | -1/Access | Destroyed Tracker 27251 | -1/Access | Destroyed Tracker 27273 | -1/Access | Spotted Combat Programmer 27276 | -1/Access | Destroyed 10 combat bots 27297 | -1/Access | Spotted Combat Programmer 27297 | -1/Access | Destroyed Combat Programmer 27302 | -1/Access | Spotted Combat Programmer 27304 | -1/Access | Destroyed Combat Programmer 27306 | -1/Access | Destroyed Combat Programmer 27396 | -1/Access | Destroyed 23 combat bots 27412 | -1/Access | Discovered new exit (range 8) 27498 | -1/Access | Entered Command 27526 | -1/Command | Build established: Alien-Construct 27681 | -1/Command | Spotted M Guard 27681 | -1/Command | Spotted M Guard 27682 | -1/Command | Spotted Combat Programmer 27683 | -1/Command | Spotted Combat Programmer 27694 | -1/Command | Destroyed Combat Programmer 27694 | -1/Command | Destroyed Combat Programmer 27704 | -1/Command | Destroyed M Guard 27706 | -1/Command | Destroyed M Guard 27706 | -1/Command | All MAIN.C guards destroyed 27727 | -1/Command | Found Prototype Protection 27727 | -1/Command | Identified Hvy. Regenerative Plating 27731 | -1/Command | Found Prototype Device 27731 | -1/Command | Identified AEGIS Remote Shield 27745 | -1/Command | Found Prototype Launcher 27748 | -1/Command | First assault squad dispatched 27760 | -1/Command | Found Prototype Launcher 27760 | -1/Command | Identified Adv. Micro-nuke Launcher 27797 | -1/Command | Met MAIN.C 27797 | -1/Command | Destroyed MAIN.C Shell 27797 | -1/Command | 0b10 Conduit disabled 27800 | -1/Command | MAIN.C activated Command garrisons 27804 | -1/Command | Destroyed MAIN.C 27813 | -1/Command | Identified Ragnarok Missile Launcher 27813 | -1/Command | Discovered new exit (range 45) 27813 | -1/Command | Discovered new exit (range 83) 27813 | -1/Command | Extracted map data and part IDs from MAIN.C's data core 28114 | -1/Command | Spotted B-99 Colossus 28633 | -1/Command | Found Exp. System Purifier 28738 | -1/Command | Found Centrium Heavy Armor Plating 29153 | -1/Command | Found Prototype Processor 29172 | -1/Command | Identified Exp. Signal Interpreter 30011 | -1/Command | Found Enh. Gamma Bomb Array 30180 | -1/Command | Warped through subspace to slip node 30180 | -1/Command | Discovered new exit (range 4) 30204 | -1/Command | Entered Access_0 30205 | -1/Access_0 | Sensed 2 artifacts in vicinity 30206 | -1/Access_0 | Met Architect 30214 | -1/Access_0 | Destroyed A8 30223 | -1/Access_0 | Architect warped through subspace 30250 | -1/Access_0 | Architect warped through subspace 30272 | -1/Access_0 | Architect warped through subspace 30294 | -1/Access_0 | Architect warped through subspace 30312 | -1/Access_0 | Architect warped through subspace 30334 | -1/Access_0 | Architect warped through subspace 30353 | -1/Access_0 | Architect warped through subspace 30370 | -1/Access_0 | Architect warped through subspace 30377 | -1/Access_0 | Architect warped through subspace 30402 | -1/Access_0 | Subspace Access Node disabled 30404 | -1/Access_0 | Architect warped through subspace 30436 | -1/Access_0 | Architect warped through subspace 30475 | -1/Access_0 | Architect warped through subspace 30497 | -1/Access_0 | Destroyed A2 30502 | -1/Access_0 | A6 warped into view 30508 | -1/Access_0 | Destroyed A6 30514 | -1/Access_0 | Architect warped through subspace 30517 | -1/Access_0 | Extracted Singularity Gate Test 138-C access codes from A2's data core 30551 | -1/Access_0 | Architect warped through subspace 30607 | -1/Access_0 | Architect warped through subspace 30633 | -1/Access_0 | Architect warped through subspace 30657 | -1/Access_0 | Architect warped through subspace 30678 | -1/Access_0 | Architect warped through subspace 30686 | -1/Access_0 | Subspace Access Node disabled 30706 | -1/Access_0 | Architect warped through subspace 30720 | -1/Access_0 | Architect warped through subspace 30741 | -1/Access_0 | Architect warped through subspace 30741 | -1/Access_0 | Subspace Access Node disabled 30755 | -1/Access_0 | Architect warped through subspace 30764 | -1/Access_0 | Architect warped through subspace 30776 | -1/Access_0 | Architect warped through subspace 30780 | -1/Access_0 | Subspace Access Node disabled 30820 | -1/Access_0 | Found Exp. Weapon Cycler 30832 | -1/Access_0 | Lost 4 allies 31187 | -1/Access_0 | Singularity Gate disabled 31191 | -1/Access_0 | Singularity Gate disabled 31245 | -1/Access_0 | Destroyed Architect 31252 | -1/Access_0 | Found Hpw. Transdimensional Reconstructor 31253 | -1/Access_0 | Extracted unknown sensor trigger ID from Architect's data core 31796 | -1/Access_0 | Found Core Expander 31796 | -1/Access_0 | Installed Core Expander, added new Propulsion slot 31844 | -1/Access_0 | A4 warped into view 31878 | -1/Access_0 | Destroyed A4 31949 | -1/Access_0 | Found Ragnarok Missile Launcher 32395 | -1/Access_0 | Found Prototype Device 32395 | -1/Access_0 | Identified Desublimator 32537 | -1/Access_0 | Warped through subspace to slip node 32537 | -1/Access_0 | Discovered new exit (range 8) 32544 | *** | Heading to fleet! Last Messages --------------- 32395_ Acquired Prototype Device. 32395_ Identified Desublimator. 32402_ Dropped Adv. Coolant Injector. 32403_ Acquired Exp. Kinecellerator. 32431_ Reinforced Shell breached. 32441_ Impact Drone released from Cep. Impact Drone Bay. 32537_ Impact Drone retrieved by Cep. Impact Drone Bay (no repairs). 32537_ Warped through subspace, drawn to slip node. 32537_ EXIT=FOUND 32541_ Impact Drone released from Cep. Impact Drone Bay. [Achievement: Force of Scrap] [Achievement: 100k Club] [Achievement: 150k Club] [Achievement: Collector] [Achievement: Rambo] [Achievement: Death Machine] Map ----- +----------------------------------------------------+ | | | | | | | | | | | | | | | | | | | | | | | | | | | | | | | | | ?????????????????????????????????????????????????? | | ?????????????????????????????????????????????????? | | ?????????????????????????????????????????????????? | | ?????????????????????????????????????????????????? | | ?????????????????????????????????????????????????? | | ?????????????????????????????????????????????????? | | ????????????????????????###??????????????????????? | | ???????????????????????## ##?????????????????????? | | ???????????????????????# #?????????????????????? | | ???????????????????????# @ #?????????????????????? | | ??????????????????????## #?????????????????????? | | ??????????????????????# n #?????????????????????? | | ??????????????????????# ##?????????????????????? | | ??????????????????????## #?????????????????????? | | ??????????????????????# n #?????????????????????? | | ??????????????????????# ##?????????????????????? | | ??????????????????????# < #?????????????????????? | | ??????????????????????# ##?????????????????????? | | ??????????????????????## #??????????????????????? | | ???????????????????????####??????????????????????? | | ?????????????????????????????????????????????????? | | ?????????????????????????????????????????????????? | | ?????????????????????????????????????????????????? | | ?????????????????????????????????????????????????? | | ?????????????????????????????????????????????????? | | ?????????????????????????????????????????????????? | | ?????????????????????????????????????????????????? | | ?????????????????????????????????????????????????? | | ?????????????????????????????????????????????????? | | ?????????????????????????????????????????????????? | | ?????????????????????????????????????????????????? | | ?????????????????????????????????????????????????? | | ?????????????????????????????????????????????????? | | ?????????????????????????????????????????????????? | +----------------------------------------------------+ Best States ------------- Heat Dissipation 94 Coolant Potential 120 Energy Generation 76 Energy Capacity 3975 Matter Stores 300 Matter Capacity 300 Sight Range 22 Robot Scan Range 18 Terrain Scan Range 24 Terrain Scan Density 10 ECM Strength 1 Jamming Range 16 Cloak Strength 6 Additional Mass Support 20 EM Shielding 4 Armor Coverage 1250 Resistance: KI 30 Resistance: TH 75 Resistance: EX 75 Resistance: EM 100 Core Shielding 20 Weapon Shielding 90 Point Defense Rating 480 Weapon Cycling 30 Melee Speed Boost 30 Phase Shifting 25 Evasion (%) 80 Targeting Accuracy 20 Melee Accuracy 12 Core Analysis 15 Recoil Reduction 5 Matter Filtering 30 Particle Charging 30 Kinecelleration 66 Force Boost 30 Offensive Hacking 50 Defensive Hacking 12 Authchip Count 4 Item Schematics ----------------- Adv. KE Penetrator | -3/Protoforge | Archive Adv. Plasma Rifle | -3/Protoforge | Archive Exp. Melee Analysis Suite | -3/Protoforge | Archive Hvy. Tesla Rifle | -3/Protoforge | Archive Exp. Targeting Computer | -3/Protoforge | Archive Imp. Thermal Defense Suite | -3/Protoforge | Archive Cld. Field Propulsion Drive | -3/Protoforge | Archive Exp. Focal Shield | -3/Protoforge | Archive Com. Particle Reactor | -3/Protoforge | Archive Exp. EM Shield | -2/Research | Scanalyzed Hvy. Proton Missile Launcher | -2/Testing | Archive Exp. Thermal Defense Suite | -2/Testing | Archive Adv. Myomer Leg | -2/Testing | Archive Imp. Diametric Drive | -2/Testing | Archive Plasma Lance | -2/Testing | Archive Thermal Barrier | -2/Testing | Archive Imp. Energy Well | -2/Testing | Archive Molecular Scythe | -2/Testing | Archive Hvy. Dispersion Rifle | -2/Testing | Hacked Com. Mass Driver | -2/Testing | Hacked Exp. Field Recycling Unit | -2/Testing | Archive Electron Diverter | -2/Testing | Archive Lrn. Phase Cannon | -2/Testing | Archive Robot Schematics ------------------ C-55 Analyst | -3/Protoforge | Archive O-32 Director | -3/Protoforge | Archive R-06 Scavenger | -3/Protoforge | Archive C-65 Expert | -2/Testing | Archive A-27 Freighter | -2/Testing | Archive X-87 Electro | -2/Testing | Archive R-10 Processor | -2/Testing | Archive A-02 Transporter | -2/Testing | Archive T-07 Excavator | -2/Testing | Archive S-43 Plague | -2/Testing | Archive Fabricated ------------ C-65 Expert | x1 | -2/Testing | Preloaded Repaired ---------- Med. Armor Plating | 11% | -7/Factory Studied --------- Fusion Bomb Launcher | -3/Quarantine | Hacked Alien Tech Used ----------------- Core Reset Matrix Integrated Dissipator Matter Drive Phase Redirector Dimensional Node Initializer Core Regenerator Concept Nanofilaments [Conductive] Subatomic Replicator Transdimensional Reconstructor Core Expander High-powered Transdimensional Reconstructor Achievements -------------- 100k Club 150k Club Anti-science Crusade Bigger And Badder Bigger Is Better Cannon Specialist Collector Coming In Hot Death Machine Force of Scrap Frienemies IP Theft Incoming! Kill Stealer Not Immortal After All Power Plant Rambo Stay Cool Under Fire Super-what Now? Superinsulated Wiki Contributor Worth The Wait Challenges ------------ None Game ------ Seed HypervelocityMassDatajack Manual? 0 Play Time 15:12:28 Cumulative 399.6 hours Start 2026.02.05 @ 15:21:44 End 2026.02.10 @ 09:52:00 Sessions 33 Manual Loads 0 Difficulty Rogue Special Mode None Game No. 73 Rogue 73 Adventurer 0 Explorer 0 Win Type 2 Total 13 Types 5/1/4/1/0/0/1/1/0/0 Lore% 78 Gallery% 75 Achievement% 63 Wizard Run 0 Options --------- Layout 1 ASCII 0 Keyboard 1 Movement Vi Keybinds 1 Fullscreen 1 Font 36/Smallcaps Map View 50x40 Zoom Use 0% Tactical HUD 1 Map Filters NONE Filters NONE Steam 1 RUN: 808d5dbe-7abe-46b0-96c4-0247df747a7e